Cogmind - Beta 14 @@@ ROGUE MODE // 2024.08.22 @ 09:45:09 Player: Dosh Result: Destroyed by B-99 Colossus with Linear Accelerator Performance ------------- Evolutions (9) 4500 Regions Visited (38) 7600 Robots Destroyed (434) 2170 Value Destroyed (26023) 26023 Prototype IDs (37) 740 Alien Tech Used (0) 0 Bonus (29147) 29147 TOTAL SCORE: 70180 Bonus ------- Triggered High Security 1500 High Alert Combat Kills 3690 Follower Combat Kills 15324 Entered Garrisons 2200 Used RIF Installer 6000 Network Hubs Disabled 400 Built Enhanced Grunts 300 Met R17 at Cetus 500 Met R17 at Research 2000 Destroyed MAIN.C Guards 500 Friendly Fire -3267 Cogmind --------- Core Integrity 0/1600 Matter 300/300 Energy 96/100 System Corruption 34% Temperature Cool (0) Movement Core (50) Location -1/Command Parts ------- > --- POWER (3) -------- (None) > --- PROPULSION (6) --- (None) > --- UTILITY (14) ----- Relay Coupler [Sentry] (24) Relay Coupler [Hunter] (1) Relay Coupler [Behemoth] (2) > --- WEAPON (2) ------- (None) > --- INVENTORY (5) ---- Quantum Reactor Quantum Capacitor Nova Cannon Peak State ------------ > --- POWER ------------ Reinforced Antimatter Reactor Quantum Reactor Quantum Reactor > --- PROPULSION ------- Improved Heavy Treads Biometal Heavy Treads Biometal Heavy Treads > --- UTILITY ---------- Huge Storage Unit Experimental Targeting Computer Relay Coupler [C] Relay Coupler [C] Relay Coupler [C] Relay Coupler [Sentry] Relay Coupler [Hunter] Relay Coupler [Behemoth] Relay Coupler [Proto] Relay Coupler [Proto] Relay Coupler [Proto] Relay Coupler [Proto] Relay Coupler [Proto] Relay Coupler [Proto] > --- WEAPON ----------- Nova Cannon Advanced Remote Datajack > --- INVENTORY -------- Quantum Reactor Light Quantum Reactor Advanced Heavy Treads Experimental Heat Sink Advanced Cooling System Experimental Energy Well Quantum Capacitor Layered Light Armor Plating Centrium Light Armor Plating Graphene Brace Improved Shield Generator Advanced Force Field Relay Coupler [Sentry] Relay Coupler [Sentry] Advanced Corruption Screen Quantum Rifle Nova Cannon Improved KE Penetrator Gamma Bomb Array [Rating: 205] Favorites ----------- Power Quantum Reactor Engine Reinforced Deuterium Engine Power Core Neutrino Core Reactor Quantum Reactor Propulsion Armored Medium Treads Treads Armored Medium Treads Utility Huge Storage Unit Device Advanced Cooling System Storage Huge Storage Unit Processor Experimental Targeting Computer Hackware Relay Coupler [Grunt] Protection Reflective Plating Weapon Advanced Plasma Cannon Energy Gun Medium Laser Energy Cannon Advanced Plasma Cannon Ballistic Gun Improved Assault Rifle Ballistic Cannon Enhanced Gauss Cannon Launcher Precision Rocket Launcher Special Weapon Advanced Remote Datajack Impact Weapon Shock Maul Special Melee Weapon Datajack Build | -11 -10 -10 -9 -9 -8 -8 -8 -8 -8 -8 -7 -7 -7 -7 -6 -6 -6 -6 -6 -6 -6 -6 -6 -5 -5 -5 -5 -4 -4 -4 -3 -3 -2 -2 -2 -2 -1 -1 ------- Run | Yrd Mat Min Mat Sto Mat Gar Mat Gar Mat Gar Fac Gar Fac Gar Fac Was Fac Gar Ext Cet Arc Hub Gar Fac Upp Upp War Pro Fac Gar Res Gar Res Gar Res Gar Acc Com Slots Evolved 18 | . . . 2 . 2 . . . . . 2 . . . 2 . . . . . . . . 2 . . . . 2 . 2 . 2 . . . 2 . Power 2 | . . . . . . . . . . . . . . . . . . . . . . . . 1 . . . . . . . . 1 . . . . . Propulsion 4 | . . . 1 . . . . . . . 1 . . . . . . . . . . . . . . . . . . . 2 . . . . . . . Utility 12 | . . . 1 . 2 . . . . . 1 . . . 2 . . . . . . . . 1 . . . . 2 . . . 1 . . . 2 . Weapon . | . . . . . . . . . . . . . . . . . . . . . . . . . . . . . . . . . . . . . . . Parts Attached 523 | 6 6 1 35 22 17 31 21 29 14 22 19 6 32 19 2 9 5 11 4 6 7 16 34 9 3 3 . . 17 13 10 23 9 18 . 10 17 17 Power 34 | 1 . . 4 2 1 2 . . . . 2 . 1 . . 1 . . . 1 . 1 2 1 . . . . . 1 . 3 3 3 . . 2 3 Engine 11 | 1 . . 4 2 1 2 . . . . 1 . . . . . . . . . . . . . . . . . . . . . . . . . . . Core 2 | . . . . . . . . . . . 1 . 1 . . . . . . . . . . . . . . . . . . . . . . . . . Reactor 21 | . . . . . . . . . . . . . . . . 1 . . . 1 . 1 2 1 . . . . . 1 . 3 3 3 . . 2 3 Propulsion 52 | 2 2 1 10 2 3 4 1 2 3 2 1 . 2 1 . 1 . . . 2 2 . 1 . . . . . 1 . 2 2 . 1 . . 2 2 Treads 52 | 2 2 1 10 2 3 4 1 2 3 2 1 . 2 1 . 1 . . . 2 2 . 1 . . . . . 1 . 2 2 . 1 . . 2 2 Leg . | . . . . . . . . . . . . . . . . . . . . . . . . . . . . . . . . . . . . . . . Wheel . | . . . . . . . . . . . . . . . . . . . . . . . . . . . . . . . . . . . . . . . Hover . | . . . . . . . . . . . . . . . . . . . . . . . . . . . . . . . . . . . . . . . Flight . | . . . . . . . . . . . . . . . . . . . . . . . . . . . . . . . . . . . . . . . Utility 227 | 1 1 . 8 2 10 7 2 8 6 8 9 6 17 7 2 2 . 8 4 2 4 11 20 6 3 3 . . 6 8 4 12 3 11 . 8 11 7 Device 82 | . . . . . 2 4 1 1 2 2 5 2 6 1 1 . . 2 1 1 2 6 9 3 1 3 . . 4 2 3 6 2 2 . 3 5 . Storage 6 | 1 1 . 1 . . 1 . . . . . . . 1 . . . . . . . . . . . . . . . . 1 . . . . . . . Processor 7 | . . . 2 . . . . . . . . . 1 . . . . . . . . . . 2 . . . . . . . . . . . 2 . . Hackware 94 | . . . . . 1 . 1 6 3 5 4 3 10 4 1 1 . 5 3 . 1 4 8 1 . . . . 1 4 . 6 1 7 . 3 5 6 Protection 38 | . . . 5 2 7 2 . 1 1 1 . 1 . 1 . 1 . 1 . 1 1 1 3 . 2 . . . 1 2 . . . 2 . . 1 1 Artifact . | . . . . . . . . . . . . . . . . . . . . . . . . . . . . . . . . . . . . . . . Weapon 210 | 2 3 . 13 16 3 18 18 19 5 12 7 . 12 11 . 5 5 3 . 1 1 4 11 2 . . . . 10 4 4 6 3 3 . 2 2 5 Energy Gun 7 | 1 1 . . . . . . . . 1 . . . . . . . . . . . . . . . . . . . . 1 3 . . . . . . Energy Cannon 70 | . . . . 1 . 2 2 2 4 4 3 . 7 7 . 3 3 3 . 1 1 3 5 . . . . . 5 3 2 1 3 1 . 2 1 1 Ballistic Gun 53 | 1 2 . 9 8 2 10 9 5 . . . . . . . . . . . . . 1 . 2 . . . . 3 . . . . . . . . 1 Ballistic Cannon 1 | . . . . . . . . . . 1 . . . . . . . . . . . . . . . . . . . . . . . . . . . . Launcher 21 | . . . 3 1 1 1 . 4 . 2 1 . . 1 . . 1 . . . . . 3 . . . . . . . . . . 1 . . 1 1 Special Weapon 41 | . . . . 2 . . 2 6 1 4 3 . 5 3 . 2 1 . . . . . 3 . . . . . 2 1 1 2 . 1 . . . 2 Impact Weapon 16 | . . . . 4 . 5 5 2 . . . . . . . . . . . . . . . . . . . . . . . . . . . . . . Slashing Weapon . | . . . . . . . . . . . . . . . . . . . . . . . . . . . . . . . . . . . . . . . Piercing Weapon . | . . . . . . . . . . . . . . . . . . . . . . . . . . . . . . . . . . . . . . . Special Melee Weapon 1 | . . . 1 . . . . . . . . . . . . . . . . . . . . . . . . . . . . . . . . . . . Unidentified Prototypes 22 | . . . 2 4 . . . . . . 1 . 1 . . . . . . 2 . 1 1 3 . . . . . . 1 . 1 1 . 3 . 1 Parts Lost 52 | . 2 . 2 2 1 5 . 3 . . 1 . 3 2 . . . . 2 1 . 2 1 2 1 . . . 1 . 2 5 1 2 . . . 11 Power 3 | . . . . . . . . . . . 1 . . . . . . . . . . . . . . . . . . . . 1 . . . . . 1 Propulsion 8 | . 1 . 1 1 . 1 . . . . . . . . . . . . . . . . 1 . . . . . 1 . . . . . . . . 2 Utility 31 | . . . 1 1 1 2 . 3 . . . . 3 2 . . . . 2 . . 1 . . 1 . . . . . 2 4 . 2 . . . 6 Weapon 10 | . 1 . . . . 2 . . . . . . . . . . . . . 1 . 1 . 2 . . . . . . . . 1 . . . . 2 Highest Loss Streak 8 | . 1 . 1 1 1 2 . 2 . . 1 . 1 2 . . . . 1 1 . 1 1 2 1 . . . 1 . 2 3 1 1 . . . 8 To Critical Strikes 2 | . . . . . . . . . . . . . . . . . . . . 1 . . 1 . . . . . . . . . . . . . . . Average Slot Usage (%) 90 | . 80 85 95 99 99 99 100 97 97 99 99 98 97 98 95 88 79 84 91 87 79 80 78 80 86 88 88 88 84 82 78 76 76 81 81 81 82 78 Engine 4 | . 14 14 11 10 9 9 9 9 9 9 5 7 1 . . . . . . . . . . . . . . . . . . . . . . . . . Reactor 3 | . . . . . . . . . . . . . . . . 3 6 6 6 6 6 6 5 11 11 11 11 11 10 9 9 9 12 12 13 13 12 9 Treads 22 | . 23 28 32 33 27 27 27 26 27 27 30 30 29 29 26 26 26 26 26 15 13 13 12 11 11 11 11 11 10 10 13 14 13 13 13 13 11 11 Device 10 | . . . . . 7 15 16 11 13 15 13 6 8 6 9 5 . 2 4 11 7 7 18 15 11 12 17 17 21 18 13 15 17 16 17 15 14 1 Storage 7 | . 14 14 11 11 9 9 9 9 9 9 7 7 7 7 6 6 6 6 6 6 6 6 6 5 5 5 5 5 5 5 4 4 4 4 4 4 4 2 Hackware 17 | . . . . . 8 9 10 20 20 16 16 24 24 23 25 22 20 21 25 26 26 25 18 20 23 23 23 23 21 21 18 19 21 22 21 22 27 41 Protection 6 | . . . 14 21 19 10 8 3 2 3 6 4 1 5 6 6 6 5 6 6 6 6 2 1 5 9 5 5 5 6 9 3 . 2 4 2 . 1 Energy Cannon 4 | . . . . . . . . 5 10 12 12 7 10 9 6 12 5 5 6 6 4 6 5 2 . . . . 2 4 4 2 2 3 3 3 3 2 Ballistic Gun 6 | . 15 28 21 20 17 16 16 4 . . . . . . . . . . . . . . . 4 11 11 11 11 5 . . . . . . . . . Special Weapon 2 | . . . . . . . . 4 5 4 2 7 4 4 6 . 5 6 6 6 6 5 5 2 . . . . 1 5 3 4 4 4 4 4 4 2 Peak Build Rating 205 | 6 7 7 25 28 39 57 59 58 58 65 69 69 69 72 80 85 86 89 86 109 109 117 113 130 134 131 131 131 140 138 154 151 153 161 158 169 188 205 Average Rating 82 | 4 5 7 20 24 36 46 56 54 54 61 67 64 65 69 77 81 85 86 79 101 103 106 108 122 131 129 131 131 138 132 144 140 147 156 156 160 180 179 On Entrance 90 | . 6 7 7 24 25 38 57 54 56 57 63 66 61 65 70 80 85 80 86 80 109 104 109 109 130 129 131 131 131 137 132 143 135 153 158 151 169 186 Naked Turns . | . . . . . . . . . . . . . . . . . . . . . . . . . . . . . . . . . . . . . . . Heaviest Build 187 | 12 32 27 64 64 77 119 122 124 125 126 129 117 123 117 114 157 157 154 137 137 132 130 136 158 164 164 158 158 166 160 162 161 167 179 174 174 187 187 Greatest Support 230 | 40 40 40 69 69 68 74 74 74 74 81 101 101 101 101 101 101 101 101 101 160 160 160 160 160 160 160 160 160 160 160 230 230 220 220 220 220 220 225 Greatest Overweight (x) 4 | 2 1 . . . 1 1 1 4 1 1 1 1 1 1 1 1 1 1 1 1 1 . 1 . 1 1 . . 1 . . . . . . . 1 1 Average Overweight (x) . | . . . . . . 1 1 1 1 1 1 1 . . 1 1 1 1 1 . . . . . . . . . . . . . . . . . . . Largest Inventory Capacity 25 | 8 15 15 20 20 20 25 25 25 25 25 25 25 25 25 25 25 25 25 25 25 25 25 25 25 25 25 25 25 25 25 25 25 25 25 25 25 25 25 Average Capacity 23 | 7 14 15 18 20 20 21 25 25 25 25 25 25 25 25 25 25 25 25 25 25 25 25 25 25 25 25 25 25 25 25 25 25 25 25 25 25 25 19 Most Carried 25 | 2 10 12 20 20 20 25 25 25 25 25 25 25 25 25 25 25 25 25 25 25 25 25 25 25 25 25 25 25 25 25 25 25 25 25 25 25 25 24 Average Carried 21 | 1 4 11 17 18 19 20 25 24 22 24 24 24 21 22 24 24 25 24 22 23 24 22 22 23 24 24 25 25 23 24 24 23 24 24 24 24 23 17 Final Capacity 25 | 8 15 15 20 20 20 25 25 25 25 25 25 25 25 25 25 25 25 25 25 25 25 25 25 25 25 25 25 25 25 25 25 25 25 25 25 25 25 5 Final Carried 25 | 2 10 12 19 19 20 25 25 25 21 25 24 25 18 25 24 25 25 25 22 25 25 17 25 25 24 25 25 25 23 25 23 25 25 25 25 25 22 4 Class Distribution -------------------- 53% | Botlord-Mutant 23% | Mutant 15% | Bothacker-Mutant 7% | Scavenger-Mutant Dominant Class ---------------- Mutant | -10/Materials Mutant | -10/Mines Mutant | -9/Materials Mutant | -9/Storage Mutant | -8/Materials Mutant | -8/Garrison Bothacker-Mutant | -8/Materials Bothacker-Mutant | -8/Garrison Bothacker-Mutant | -8/Materials Botlord-Mutant | -8/Garrison Botlord-Mutant | -7/Factory Botlord-Mutant | -7/Garrison Botlord-Mutant | -7/Factory Botlord-Mutant | -7/Garrison Botlord-Mutant | -6/Factory Botlord-Mutant | -6/Waste Botlord-Mutant | -6/Factory Botlord-Mutant | -6/Garrison Botlord-Mutant | -6/Extension Botlord-Mutant | -6/Cetus Botlord-Mutant | -6/Archives Botlord-Mutant | -6/Hub_04(d) Botlord-Mutant | -6/Garrison Botlord-Mutant | -5/Factory Scavenger-Mutant | -5/Upper Caves Scavenger-Mutant | -5/Upper Caves Scavenger-Mutant | -5/Warlord Scavenger-Mutant | -4/Proximity Caves Scavenger-Mutant | -4/Factory Botlord-Mutant | -4/Garrison Botlord-Mutant | -3/Research Botlord-Mutant | -3/Garrison Botlord-Mutant | -2/Research Botlord-Mutant | -2/Garrison Botlord-Mutant | -2/Research Botlord-Mutant | -2/Garrison Botlord-Mutant | -1/Access Botlord-Mutant | -1/Command Resources | -11 -10 -10 -9 -9 -8 -8 -8 -8 -8 -8 -7 -7 -7 -7 -6 -6 -6 -6 -6 -6 -6 -6 -6 -5 -5 -5 -5 -4 -4 -4 -3 -3 -2 -2 -2 -2 -1 -1 ----------- Run | Yrd Mat Min Mat Sto Mat Gar Mat Gar Mat Gar Fac Gar Fac Gar Fac Was Fac Gar Ext Cet Arc Hub Gar Fac Upp Upp War Pro Fac Gar Res Gar Res Gar Res Gar Acc Com Matter Collected 15207 | 240 118 165 1100 833 733 1079 770 784 279 398 238 326 530 294 2 237 124 531 273 159 198 338 818 128 373 46 . 98 293 507 248 409 209 593 300 457 603 376 Remotely . | . . . . . . . . . . . . . . . . . . . . . . . . . . . . . . . . . . . . . . . Salvage Created 18641 | . 455 96 1639 1486 1296 1208 897 531 574 375 716 104 531 454 2 1286 . 77 154 262 279 460 522 92 223 . . 119 818 782 219 666 10 939 . 166 405 798 Parts 972 | . 33 5 117 89 88 82 60 32 23 29 39 7 35 14 2 7 . 2 6 10 13 29 28 6 7 . . 9 34 31 6 25 2 46 . 7 23 26 Haulers Intercepted 20 | . 2 . 6 5 2 . 1 . 1 . 3 . . . . . . . . . . . . . . . . . . . . . . . . . . . Recyclers Shooed 5 | . . . 2 . 1 . . . . . . . . . . . . . 1 . . . . . . . . . 1 . . . . . . . . . Parts Field Recycled . | . . . . . . . . . . . . . . . . . . . . . . . . . . . . . . . . . . . . . . . Retrieved Matter . | . . . . . . . . . . . . . . . . . . . . . . . . . . . . . . . . . . . . . . . Parts Self-Destructed 39 | . . . . . . . . . . . . . . . . . . . . . . . . . 30 . . 9 . . . . . . . . . . Prevented 1 | . . . . . . . . . . . . . . . . . . . . . . . . . 1 . . . . . . . . . . . . . Kills | -11 -10 -10 -9 -9 -8 -8 -8 -8 -8 -8 -7 -7 -7 -7 -6 -6 -6 -6 -6 -6 -6 -6 -6 -5 -5 -5 -5 -4 -4 -4 -3 -3 -2 -2 -2 -2 -1 -1 ------- Run | Yrd Mat Min Mat Sto Mat Gar Mat Gar Mat Gar Fac Gar Fac Gar Fac Was Fac Gar Ext Cet Arc Hub Gar Fac Upp Upp War Pro Fac Gar Res Gar Res Gar Res Gar Acc Com Combat Hostiles Destroyed 328 | . 8 2 34 21 25 31 19 20 10 13 15 4 8 10 . 5 . 2 3 3 . 7 14 1 4 . . 5 10 12 3 11 . 15 . 1 6 6 Melee 5 | . . . . . . 2 . . . 1 . . 1 . . . . . . . . . . . . . . . . 1 . . . . . . . . Guns 152 | . 8 2 29 21 23 24 19 5 . . . . . . . . . . . . . . . 1 4 . . 5 5 . . 6 . . . . . . Cannons 85 | . . . . . . . . 3 6 7 5 4 5 6 . 3 . 2 3 2 . 6 4 . . . . . 2 8 1 2 . 10 . 1 5 . AOE 59 | . . . 5 . 2 5 . 12 . 4 9 . 1 4 . . . . . . . . 10 . . . . . . 1 . . . 3 . . . 3 Classes Destroyed 23 | . 6 . 4 . 2 2 1 1 . . 2 . . . . 1 . . 1 . . . . 1 . . . . . 1 . . . 1 . . . . Worker 16 | . . . . . . . 3 . 1 . 2 . 2 . 2 . . . . . . 2 . . . . . . . . 1 . 1 . . . 1 1 Builder 18 | . . . 1 3 1 . 7 . . . 1 . 2 . 1 . . . . . . 1 . . . . . . 1 . . . . . . . . . Tunneler 2 | . 1 . 1 . . . . . . . . . . . . . . . . . . . . . . . . . . . . . . . . . . . Hauler 20 | . 2 . 6 5 2 . 1 . 1 . 3 . . . . . . . . . . . . . . . . . . . . . . . . . . . Recycler 4 | . . . 1 1 . . . . . . . . 1 . . . . . . . . . . . . . . . 1 . . . . . . . . . Mechanic 1 | . . . . . . . . . . . 1 . . . . . . . . . . . . . . . . . . . . . . . . . . . Operator 13 | . 1 . . 1 1 . . . . . 1 . . . . . . . . . 8 . . . . . . . . . . . . . . . . 1 Watcher 18 | . 2 . 5 1 5 1 . . . . . . 1 . . . . . . . . . 3 . . . . . . . . . . . . . . . Swarmer 77 | . 3 . 7 . 7 7 6 10 . 7 . 4 . 4 . . . 1 . . . . 7 . 2 . . 5 . 1 . 2 . 4 . . . . Cutter 5 | . . . . . . . . 3 . . . . . . . . . . . . . . . . . . . . . . . 2 . . . . . . Saboteur 1 | . . . . . . . . . . . . . . . . . . . . . . . . . . . . . . 1 . . . . . . . . Grunt 114 | . 5 2 17 10 8 11 8 3 4 3 4 . 2 2 . . . . 2 . . 4 6 . 1 . . . 2 5 3 3 . . . 1 . 8 Brawler 9 | . . . . . 1 . 1 . . . 1 . . . . . . 1 . . . . 1 . 2 . . . . 1 . . . 1 . . . . Duelist 7 | . . . 1 . . . . . 1 . . . . . . . . . . . . 1 . . . . . . . 1 . . . 2 . . 1 . Sentry 54 | . . . 9 11 7 8 4 1 4 1 1 . 1 4 . 1 . . . . . . 1 . . . . . . 1 . . . . . . . . Demolisher 1 | . . . . . . . . . . . . . . . . . . . 1 . . . . . . . . . . . . . . . . . . . Specialist 4 | . . . . . . . . . . . 2 . 1 . . . . . . . . 1 . . . . . . . . . . . . . . . . Hunter 14 | . . . . . 2 . . 1 1 . 3 . . . . . . . . . . . . . . . . . 2 . . 2 . . . 1 2 . Programmer 40 | . . . . . . 4 . 3 . 3 5 . 5 . . . . . . . . 1 . . . . . . 6 2 . 2 . 6 . . 3 . Heavy 1 | . . . . . . . . . . . . . . . . . . . . . . . . 1 . . . . . . . . . . . . . . Behemoth 1 | . . . . . . 1 . . . . . . . . . . . . . . . . . . . . . . . . . . . . . . . . Compactor 5 | . . . . . . . . . . . . . . . . 5 . . . . . . . . . . . . . . . . . . . . . . Cetus Guard 3 | . . . . . . . . . . . . . . . . . . . . 3 . . . . . . . . . . . . . . . . . . Striker 2 | . . . . . . . . . . . . . . . . . . . . . . . . . . . . . . . . . . 2 . . . . Surgeon 1 | . . . . . . . . . . . . . . . . . . . . . . 1 . . . . . . . . . . . . . . . . Butcher 1 | . . . . . . . . . . . . . . . . . . . . 1 . . . . . . . . . . . . . . . . . . Guerrilla 1 | . . . . . . 1 . . . . . . . . . . . . . . . . . . . . . . . . . . . . . . . . Infiltrator 1 | . . . . . . . . . . . . . . . . . . . . . . . . . . . . . . 1 . . . . . . . . Best Kill Streak 13 | . 3 1 6 4 4 7 3 8 2 5 13 2 3 4 2 2 . 1 1 2 1 3 4 1 2 . . 5 3 5 2 4 1 5 . 1 2 6 Combat Bots Only 9 | . 3 1 6 4 4 7 3 8 2 5 9 2 1 4 . 2 . 1 1 2 . 3 4 1 2 . . 5 3 5 1 4 . 5 . 1 2 6 Max Kills in Single Turn 4 | . 1 1 3 1 2 3 2 4 1 2 3 1 3 4 1 1 . 1 1 1 1 1 4 1 1 . . 2 1 1 1 1 1 2 . 1 1 4 Gunslinging 1 | . . . 1 . . . 1 . . . . . . . . . . . . . . . . . . . . 1 . . . . . . . . . . Exploded 4 | . . . 1 . 2 3 . 4 . 2 3 . 1 4 . . . . . . . . 4 . . . . . . 1 . . . 2 . . . 2 Melee 1 | . . . . . . 1 . . . 1 . . 1 . . . . . . . . . . . . . . . . 1 . . . . . . . . Uniques/NPCs Destroyed . | . . . . . . . . . . . . . . . . . . . . . . . . . . . . . . . . . . . . . . . Combat | -11 -10 -10 -9 -9 -8 -8 -8 -8 -8 -8 -7 -7 -7 -7 -6 -6 -6 -6 -6 -6 -6 -6 -6 -5 -5 -5 -5 -4 -4 -4 -3 -3 -2 -2 -2 -2 -1 -1 -------- Run | Yrd Mat Min Mat Sto Mat Gar Mat Gar Mat Gar Fac Gar Fac Gar Fac Was Fac Gar Ext Cet Arc Hub Gar Fac Upp Upp War Pro Fac Gar Res Gar Res Gar Res Gar Acc Com Hostile Shots Fired 2394 | . 40 23 169 95 124 212 70 138 39 53 98 54 83 163 2 . 3 17 42 65 . 57 131 20 27 . . 33 62 38 31 100 14 81 4 17 46 243 Missed 755 | . 8 7 52 25 50 51 18 47 14 18 38 22 31 66 1 . 1 7 13 18 . 12 56 4 8 . . 2 22 13 5 30 2 16 3 2 15 78 Damage Taken 23943 | . 419 254 1343 888 1033 1899 542 1212 280 448 756 363 722 808 66 7 236 346 422 816 . 761 819 218 213 . 19 290 531 268 541 1043 240 1113 53 221 519 4234 Core 3376 | . 102 93 132 63 88 127 55 142 21 30 135 42 123 35 . 3 . 10 31 101 . 31 82 62 11 . 6 31 16 . 12 44 12 62 9 33 11 1621 Absorbed by Shields 6515 | . . . . . . 401 190 190 94 . 151 40 130 . 4 4 . 103 98 546 . 208 120 228 223 . 20 177 379 241 178 652 175 776 55 228 496 408 Reduced by Siege Mode 216 | . . . . . . . . . . . . . . . . . . . . . . 3 . . 6 . . 36 52 . 18 36 . 65 . . . . Ignored by Resistances 445 | . . . 92 79 53 116 . . 3 9 34 54 5 . . . . . . . . . . . . . . . . . . . . . . . . . Regen/Repaired (Parts) 3129 | . . . 419 178 . . . . 634 . 78 . 453 85 . 446 119 60 143 171 . . . . . . . . 343 . . . . . . . . . Core Remaining (%) 68 | 100 . 22 . 51 . . . . . 15 . . . 52 . . . . . . . . 69 . . . . 89 . 98 . 95 . . . 92 . . Volleys Fired 2050 | . 43 14 127 100 94 107 85 80 45 61 53 28 55 68 2 51 10 61 46 23 69 81 106 5 30 1 . 7 58 71 37 104 17 111 23 46 98 33 Largest 2 | . 2 2 2 2 2 2 2 2 2 2 2 1 2 2 1 2 1 1 1 1 1 1 1 2 2 2 . 2 2 1 1 1 1 1 1 1 1 1 Hottest 196 | . 70 40 53 46 66 66 98 141 196 196 196 98 196 196 7 128 98 98 90 98 98 98 98 76 76 76 . 76 136 98 94 94 94 113 113 113 113 113 Shots Fired 2806 | . 86 28 242 202 185 207 157 109 55 78 77 29 66 87 2 85 11 62 49 23 70 83 109 10 60 2 . 14 78 70 37 104 18 111 23 46 98 33 Gun 1314 | . 86 28 232 202 184 204 148 51 . . . . . . . . . . . . . . . 10 60 2 . 14 38 . 7 47 1 . . . . . Cannon 1013 | . . . . . . . 4 33 46 60 52 23 43 72 . 78 10 28 27 23 67 72 56 . . . . . 32 61 11 34 2 83 4 21 57 14 Launcher 43 | . . . 10 . 1 3 . 5 . 2 8 . . 1 . . . . . . . . 6 . . . . . . . . . . 2 . . 1 4 Special 436 | . . . . . . . 5 20 9 16 17 6 23 14 2 7 1 34 22 . 3 11 47 . . . . . 8 9 19 23 15 26 19 25 40 15 Kinetic 1217 | . 44 28 232 202 184 204 148 51 . . . . . . . . . . . . . . . 10 60 2 . 14 38 . . . . . . . . . Thermal 1029 | . 27 . . . . . 4 33 46 60 52 23 43 72 . 78 10 28 27 23 67 72 56 . . . . . 12 61 7 47 2 83 4 21 57 14 Explosive 36 | . . . 10 . 1 3 . 5 . 2 8 . . 1 . . . . . . . . 6 . . . . . . . . . . . . . . . Electromagnetic 88 | . 15 . . . . . . . . . . . . . . . . . . . . . . . . . . . 20 . 11 34 1 2 . . 1 4 Robot Hit Streak 34 | . 12 4 15 21 30 34 18 8 16 5 9 8 7 7 7 10 1 12 12 8 5 6 15 3 10 . . 5 17 4 10 14 4 19 13 21 18 11 Robot Miss Streak 6 | . 3 3 6 2 4 4 6 4 2 3 2 1 3 2 . 2 2 4 2 1 5 4 2 2 3 . . 3 2 4 5 6 3 6 2 3 2 2 Penetration Max 1 | . . . . . . 1 1 1 . . . . . . . . . . . . . . . . 1 . . . 1 . . . . . . . . . Secondary Targets 20 | . 2 . 4 2 2 4 2 1 . . . . . . . . . . . . . . . . . . . 3 . . . . . . . . . . Max Gunslinging Chain 1 | . 1 . 1 1 1 1 1 1 . . . . . . . . . . . . . . . . . . . 1 . . . . . . . . . . Capacitor 458 | . . . . . . . . . . . . . . . . . . . . . . 36 56 . . . . . 31 61 18 81 3 83 4 21 57 7 Shots Hit Robots 1777 | . 48 16 168 155 136 152 96 52 41 27 48 12 37 43 2 53 1 30 38 19 35 40 71 7 41 . . 9 54 37 31 59 12 81 17 23 61 25 Core Hits 700 | . 21 10 80 52 65 60 34 30 8 12 39 4 9 14 . 10 . 2 8 8 14 21 27 2 11 . . 5 21 14 7 16 1 32 . 4 11 48 Critical Kills 23 | . . . . . 1 . 2 . 3 2 . . 1 . . 2 . . . 1 1 2 . . . . . 1 2 2 . . . 2 . . 1 . Critical Parts Destroyed 8 | . . . . 1 . 1 1 3 . . . . . . . . . . . . . . . . 1 . . . 1 . . . . . . . . . Critical Strikes 32 | . . . . 1 1 1 4 3 3 2 . . 1 . . 2 . . . 1 1 2 . . 1 . . 1 3 2 . . . 2 . . 1 . Meltdown 17 | . . . . . . . . . 3 2 . . 1 . . 2 . . . 1 1 2 . . . . . . . 2 . . . 2 . . 1 . Destroy 11 | . . . . 1 1 1 3 . . . . . . . . . . . . . . . . . 1 . . 1 3 . . . . . . . . . Smash 4 | . . . . . . . 1 3 . . . . . . . . . . . . . . . . . . . . . . . . . . . . . . Melee Attacks 42 | . . . 1 4 . 15 18 4 . . . . . . . . . . . . . . . . . . . . . . . . . . . . . . Impact 41 | . . . . 4 . 15 18 4 . . . . . . . . . . . . . . . . . . . . . . . . . . . . . . Slashing . | . . . . . . . . . . . . . . . . . . . . . . . . . . . . . . . . . . . . . . . Piercing . | . . . . . . . . . . . . . . . . . . . . . . . . . . . . . . . . . . . . . . . Sneak Attacks 6 | . . . 1 . . . 5 . . . . . . . . . . . . . . . . . . . . . . . . . . . . . . . Combat Hostiles . | . . . . . . . . . . . . . . . . . . . . . . . . . . . . . . . . . . . . . . . Follow-up Attacks . | . . . . . . . . . . . . . . . . . . . . . . . . . . . . . . . . . . . . . . . Damage Inflicted 46083 | . 677 220 3196 2538 2144 3342 2666 2315 1174 1065 3094 328 935 1422 66 1689 26 360 670 574 1190 1185 2209 197 1404 . . 340 1802 1019 523 1536 74 2736 102 194 1205 1866 Guns 17480 | . 643 219 2536 2429 1986 2890 2081 755 . . . . . . . . . . . . . . . 197 1404 . . 340 961 . 171 868 . . . . . . Cannons 19030 | . . . . . . . . 211 1135 671 1171 328 683 1120 . 1689 26 360 592 574 1190 1139 1020 . . . . . 747 1008 340 668 74 2438 88 194 1188 376 Explosions 7956 | . . . 614 . 79 434 . 1053 . 386 1923 . 179 302 . . . . . . . . 1189 . . . . . 94 . . . . 298 . . . 1405 Melee 802 | . . . . . . . 508 294 . . . . . . . . . . . . . . . . . . . . . . . . . . . . . . Ramming 815 | . 34 1 46 109 79 18 77 2 39 8 . . 73 . 66 . . . 78 . . 46 . . . . . . . 11 12 . . . 14 . 17 85 Kinetic 16145 | . 347 219 2536 2429 1986 2890 2081 755 . . . . . . . . . . . . . . . 197 1404 . . 340 961 . . . . . . . . . Thermal 19258 | . 186 . . . . . . 211 1135 671 1171 328 862 1120 . 1689 26 360 592 574 1190 1139 1020 . . . . . 239 1008 171 868 37 2438 88 194 1188 753 Explosive 5980 | . . . 614 . 79 434 . 1053 . 386 1923 . . 302 . . . . . . . . 1189 . . . . . . . . . . . . . . . Electromagnetic 3083 | . 110 . . . . . . . . . . . . . . . . . . . . . . . . . . . 602 . 340 668 37 298 . . . 1028 Impact 802 | . . . . . . . 508 294 . . . . . . . . . . . . . . . . . . . . . . . . . . . . . . Slashing . | . . . . . . . . . . . . . . . . . . . . . . . . . . . . . . . . . . . . . . . Piercing . | . . . . . . . . . . . . . . . . . . . . . . . . . . . . . . . . . . . . . . . Highest Corruption 34 | . . . . 3 2 3 3 5 5 6 4 1 2 2 . 32 32 32 32 32 32 22 23 . 4 4 4 . 8 10 . 5 5 14 14 14 1 34 Average Corruption 10 | . . . . 3 2 2 3 4 5 5 1 1 1 2 . 25 32 32 32 32 23 19 22 . 4 4 4 . 4 9 . 4 5 11 14 14 1 5 Corruption Purged 17 | . . . . . . . . . . . 4 . . . . . . . . . 13 . . . . . . . . . . . . . . . . . Corruption Blocked . | . . . . . . . . . . . . . . . . . . . . . . . . . . . . . . . . . . . . . . . Effects 1021 | . . . . 13 11 32 45 38 49 49 11 5 28 26 . 48 39 71 72 20 58 71 112 . 8 14 . . 15 38 . 11 1 54 20 34 3 25 Message Errors 244 | . . . . 4 3 9 11 12 8 11 . . 4 5 . 12 9 18 15 6 22 17 27 . 2 2 . . 7 7 . 2 . 9 4 13 . 5 Matter Fused 262 | . . . . 2 3 7 9 4 17 13 6 1 9 7 . 13 7 17 19 5 13 16 26 . 3 4 . . 2 11 . 3 . 14 7 12 2 10 Heat Flow Errors 127 | . . . . 2 . 3 8 6 8 9 3 . 2 1 . 5 7 5 9 3 5 5 16 . 2 2 . . 2 4 . 2 . 8 3 6 . 1 Energy Discharges 117 | . . . . 1 3 3 9 8 6 8 . 2 5 4 . 5 3 10 8 1 3 7 7 . . 2 . . 2 8 . . . 4 4 1 . 3 Parts Rejected 11 | . . . . . . 1 . . . . . . 2 . . 1 . . . . . 2 3 . . . . . . . . . . 1 . . . 1 Parts Fused 16 | . . . . . . . 1 1 . . . . . . . 1 2 . 2 . 1 2 1 . . 1 . . . . . 1 . 2 . 1 . . Data Loss (minor) 116 | . . . . 1 2 4 5 4 3 6 . 1 4 7 . 6 5 10 8 1 8 10 13 . . 2 . . . 4 . 2 . 6 2 1 . 1 Data Loss (major) 39 | . . . . 1 . 1 1 2 3 . 1 . 1 . . . 2 2 4 2 2 1 7 . 1 1 . . 1 2 . 1 . 3 . . . . Misfires 31 | . . . . 2 . . 1 . 1 1 1 1 . . . . 2 2 3 1 2 5 6 . . . . . 1 . . . 1 1 . . . . Alerts 18 | . . . . . . 1 . 1 1 1 . . . . . . 1 3 1 . 1 1 . . . . . . . 1 . . . 4 . . 1 1 Misdirections 15 | . . . . . . . . . . . . . . . . . . 3 3 . . 2 3 . . . . . . . . . . 1 . . . 3 Weapon Failures 25 | . . . . . . 3 . . 2 . . . 1 2 . 5 1 1 . 1 1 3 3 . . . . . . 1 . . . 1 . . . . Overload Shots 11 | . . . . . . . . . . . . . . 1 . . . 6 4 . . . . . . . . . . . . . . . . . . . Effects 3 | . . . . . . . . . . . . . . . . . . 2 1 . . . . . . . . . . . . . . . . . . . Energy Bleed 2 | . . . . . . . . . . . . . . . . . . 1 1 . . . . . . . . . . . . . . . . . . . Heat Surge 1 | . . . . . . . . . . . . . . . . . . 1 . . . . . . . . . . . . . . . . . . . . Overflow Damage 1458 | . . . . . . 42 234 389 . 55 139 14 127 41 2 . . . . . 127 4 77 . . . . . 20 8 . . . 106 . . 73 . Projectiles 603 | . . . . . . . 8 44 . 25 78 14 40 37 . . . . . . 127 4 19 . . . . . 20 8 . . . 106 . . 73 . Explosions 360 | . . . . . . 42 . 78 . 30 61 . 87 4 . . . . . . . . 58 . . . . . . . . . . . . . . . Melee 495 | . . . . . . . 226 267 . . . . . . 2 . . . . . . . . . . . . . . . . . . . . . . . Knockbacks 14 | . 1 . 1 2 1 . 3 3 . . . . 1 . . . . . 2 . . . . . . . . . . . . . . . . . . . Impact 12 | . 1 . 1 2 1 . 2 2 . . . . 1 . . . . . 2 . . . . . . . . . . . . . . . . . . . Kinetic . | . . . . . . . . . . . . . . . . . . . . . . . . . . . . . . . . . . . . . . . Secondary 2 | . . . . . . . 1 1 . . . . . . . . . . . . . . . . . . . . . . . . . . . . . . Self-Inflicted Damage 487 | . . . 14 . . 69 . 133 . . . . . . . . . . . . . . 52 . . . . . 21 . . . . 10 . . . 188 Shots 24 | . . . 1 . . 1 . 4 . . . . . . . . . . . . . . 3 . . . . . 1 . . . . 1 . . . 13 Rammed 82 | . 4 1 6 10 7 3 4 1 6 1 1 . 7 . . . . . 6 . . 4 . . . . . . . 1 1 . . . 1 . 1 17 Targets Rammed 96 | . 4 1 6 10 8 6 6 1 6 1 1 . 11 . 3 . . . 6 . . 4 . . . . . . . 1 2 . . . 1 . 1 17 Kicked . | . . . . . . . . . . . . . . . . . . . . . . . . . . . . . . . . . . . . . . . Crushed 14 | . . . . . 1 3 2 . . . . . 4 . 3 . . . . . . . . . . . . . . . 1 . . . . . . . Highest Temperature 605 | . 147 3 238 194 230 310 346 274 242 228 403 220 351 192 . 508 291 525 279 192 374 344 280 63 232 221 218 189 400 364 341 358 64 352 195 605 390 220 Average Temperature 89 | . 47 2 45 28 61 91 74 65 72 56 86 87 107 71 . 158 138 137 87 42 131 94 82 29 73 92 113 93 134 118 150 98 43 105 73 125 110 85 Received Heat Transfer 4612 | . 177 144 573 369 369 553 236 203 114 180 90 48 142 243 . . 9 69 152 85 . 263 169 14 36 . . . 12 40 43 100 18 12 12 20 12 105 Effects 39 | . . . 2 . 4 3 3 . . . 1 . . . . 7 2 7 . . 4 . . . . . . . . 1 1 2 . . . 1 1 . Shutdowns 6 | . . . . . . . . . . . . . . . . 1 . 1 . . 1 . . . . . . . . . . 1 . . . 1 1 . Energy Bleed 10 | . . . . . 1 1 . . . . 1 . . . . 1 1 3 . . 1 . . . . . . . . . 1 . . . . . . . Interference 18 | . . . 2 . 3 2 3 . . . . . . . . 3 1 2 . . 2 . . . . . . . . . . . . . . . . . Matter Decay 2 | . . . . . . . . . . . . . . . . . . 1 . . . . . . . . . . . 1 . . . . . . . . Short Circuit 1 | . . . . . . . . . . . . . . . . 1 . . . . . . . . . . . . . . . . . . . . . . Damage (minor) 2 | . . . . . . . . . . . . . . . . 1 . . . . . . . . . . . . . . . 1 . . . . . . Siege Activations 18 | . . . . . . . . . . . . . . . . . . . . . . 1 . . 4 . . 1 6 . 1 2 . 3 . . . . Total Turns 278 | . . . . . . . . . . . . . . . . . . . . . . 6 . . 49 . . 17 118 . 6 31 . 51 . . . . Longest Duration 65 | . . . . . . . . . . . . . . . . . . . . . . 6 . . 21 . . 17 65 . 6 23 . 25 . . . . Robots Corrupted 18 | . . . . 1 . . 3 3 . . . . . . . . . . . . . . . . . . . . 2 . 2 3 . . . . . 4 Combat Hostiles 13 | . . . . . . . . 3 . . . . . . . . . . . . . . . . . . . . 2 . 2 3 . . . . . 3 Parts Fried 32 | . 1 . . . . . 9 3 . . . . 2 . . . . . . . . . . . . . . . 4 . 4 2 . . . . . 7 Impact Corruptions 19 | . . . . 1 . . 12 5 . . . . . . 1 . . . . . . . . . . . . . . . . . . . . . . . Robots Melted 21 | . . . . . . . . . 4 2 1 . 1 . . 2 . . . 1 1 2 . . . . . . 1 3 . . . 2 . . 1 . Combat Hostiles 17 | . . . . . . . . . 4 1 1 . 1 . . 2 . . . 1 . 1 . . . . . . 1 2 . . . 2 . . 1 . Parts Melted 62 | . . . . . . . . . 9 8 4 1 2 6 . 1 . . . . 3 5 1 . . . . . 1 8 . 5 . 3 . 1 3 1 Heat Transferred 24536 | . 555 . . . . . . 300 1600 875 1600 500 1050 1648 . 2473 37 475 661 754 1800 1675 1500 . . . . . 300 1475 222 962 37 2109 74 185 1036 633 Parts Sabotaged 8 | . . . . . . . . . . . . . . . . . . . . . . . 3 . . . . . . 2 . . . . . . . 3 Parts Stolen . | . . . . . . . . . . . . . . . . . . . . . . . . . . . . . . . . . . . . . . . Parts Stripped . | . . . . . . . . . . . . . . . . . . . . . . . . . . . . . . . . . . . . . . . Power Chain Reactions 4 | . . . . . . . . . . . . . . . . . . . . . . . . . . . . . . . . . . . . . 2 2 Alert | -11 -10 -10 -9 -9 -8 -8 -8 -8 -8 -8 -7 -7 -7 -7 -6 -6 -6 -6 -6 -6 -6 -6 -6 -5 -5 -5 -5 -4 -4 -4 -3 -3 -2 -2 -2 -2 -1 -1 ------- Run | Yrd Mat Min Mat Sto Mat Gar Mat Gar Mat Gar Fac Gar Fac Gar Fac Was Fac Gar Ext Cet Arc Hub Gar Fac Upp Upp War Pro Fac Gar Res Gar Res Gar Res Gar Acc Com Peak Influence 5549 | . 174 112 444 407 276 1337 651 1044 508 837 473 677 370 975 642 228 278 1312 1133 801 400 1203 2920 1873 . . . . 304 1154 757 1160 800 2077 1378 2199 3106 5549 Initial 1948 | . . 30 . 123 90 133 651 162 508 64 438 154 354 30 511 224 . 194 688 604 240 1 863 1533 . . . . 69 13 648 306 652 600 1167 908 1319 1948 Average 652 | . 51 50 201 181 127 742 251 542 164 394 184 399 131 561 535 103 141 795 792 716 236 603 1879 1664 . . . . 118 741 536 776 728 1510 1132 1650 1945 3440 Maximum Alert Level 5 | . . . 2 2 1 4 2 3 2 3 2 2 1 3 2 1 1 4 4 3 2 4 5 5 . . . . 1 4 3 4 3 5 4 5 5 5 Low Security (%) 33 | 100 100 100 57 63 82 1 33 3 56 16 49 23 81 12 . 55 70 6 . . 33 6 . . . . . . 84 17 12 . . . . . . . Level 1 21 | . . . 41 34 17 10 62 41 38 43 38 32 18 15 . 44 29 6 8 . 53 34 . . . . . . 15 4 16 4 . . . . . . Level 2 12 | . . . 1 1 . 37 3 20 5 30 12 43 . 36 100 . . 22 17 56 12 24 . . . . . . . 7 48 37 31 3 3 . . . Level 3 12 | . . . . . . 32 . 34 . 8 . . . 34 . . . 44 69 43 . 17 10 . . . . . . 39 23 47 68 12 29 13 . . Level 4 7 | . . . . . . 17 . . . . . . . . . . . 19 4 . . 16 24 56 . . . . . 30 . 10 . 43 67 35 22 . Level 5 9 | . . . . . . . . . . . . . . . . . . . . . . . 65 3 . . . . . . . . . 40 . 51 64 70 High Security 1 | . . . . . . . . . . . . . . . . . . . . . . . . 40 . . . . . . . . . . . . 13 29 Max Security . | . . . . . . . . . . . . . . . . . . . . . . . . . . . . . . . . . . . . . . . Squads Dispatched 126 | . 2 . 2 1 4 . 2 . 2 . 3 . 11 . 2 . 2 . 8 . . 16 . 5 . . . . 7 . 4 . . . 8 . 21 26 Investigation 12 | . . . . . 1 . 1 . . . . . 1 . . . . . . . . 7 . . . . . . 1 . . . . . . . 1 . Extermination 18 | . . . . . . . . . . . 2 . 4 . 1 . 2 . . . . 2 . . . . . . 2 . . . . . 1 . 2 2 Reinforcement 36 | . 2 . 2 1 2 . 1 . 2 . 1 . 3 . 1 . . . 1 . . 6 . 1 . . . . 1 . 4 . . . 1 . 4 3 Assault 48 | . . . . . . . . . . . . . . . . . . . 7 . . 1 . 4 . . . . . . . . . . 1 . 14 21 Garrison 12 | . . . . . 1 . . . . . . . 3 . . . . . . . . . . . . . . . 3 . . . . . 5 . . . Intercept . | . . . . . . . . . . . . . . . . . . . . . . . . . . . . . . . . . . . . . . . Searches Triggered . | . . . . . . . . . . . . . . . . . . . . . . . . . . . . . . . . . . . . . . . Construction Impeded 4 | . . . 2 . . . . . . . 1 . . . . . . . . . . . . . . . . . . . . . . . . . 1 . Haulers Reinforced 4 | . . . . . . . . . . . . . . . . . . . . . . 1 . . . . . . . . 1 . . . 1 . 1 . Active Scanning Responses . | . . . . . . . . . . . . . . . . . . . . . . . . . . . . . . . . . . . . . . . Cargo Convoy Interrupts 1 | . . . . . . . . . . . 1 . . . . . . . . . . . . . . . . . . . . . . . . . . . Stealth | -11 -10 -10 -9 -9 -8 -8 -8 -8 -8 -8 -7 -7 -7 -7 -6 -6 -6 -6 -6 -6 -6 -6 -6 -5 -5 -5 -5 -4 -4 -4 -3 -3 -2 -2 -2 -2 -1 -1 --------- Run | Yrd Mat Min Mat Sto Mat Gar Mat Gar Mat Gar Fac Gar Fac Gar Fac Was Fac Gar Ext Cet Arc Hub Gar Fac Upp Upp War Pro Fac Gar Res Gar Res Gar Res Gar Acc Com Distress Signals 50 | . 1 . 4 3 3 . 1 . 5 . 4 . 3 . 1 . 2 . 4 2 . 2 2 . . . . . 1 . 4 . . . 2 . 4 2 Communications Jammed 542 | . . . . . . . 12 . . . . . 10 . . . . 32 154 249 . 1 . . . . . . . . . . . . . . 84 . Distress Signals 537 | . . . . . . . 10 . . . . . 10 . . . . 32 154 249 . 1 . . . . . . . . . . . . . . 81 . Times Spotted 1063 | . 14 6 48 27 41 33 34 36 28 24 32 18 31 26 3 5 8 35 61 10 35 38 52 10 14 . . 5 20 26 16 43 8 42 12 33 67 122 Peak Tracking Total 38 | . 3 2 5 4 5 7 3 5 4 6 10 6 4 4 3 2 4 9 20 5 1 5 5 5 4 . . 5 3 8 6 7 2 8 5 5 12 38 Tactical Retreats 36 | . . . 2 . 1 . 3 . 2 1 . 1 . . . . . . 9 . . 3 1 . . . . . . . 1 1 . 1 . . 1 9 Traps | -11 -10 -10 -9 -9 -8 -8 -8 -8 -8 -8 -7 -7 -7 -7 -6 -6 -6 -6 -6 -6 -6 -6 -6 -5 -5 -5 -5 -4 -4 -4 -3 -3 -2 -2 -2 -2 -1 -1 ------- Run | Yrd Mat Min Mat Sto Mat Gar Mat Gar Mat Gar Fac Gar Fac Gar Fac Was Fac Gar Ext Cet Arc Hub Gar Fac Upp Upp War Pro Fac Gar Res Gar Res Gar Res Gar Acc Com Traps Triggered 45 | . 1 . 1 . 1 5 . 3 . 5 . 2 . 5 1 . 2 1 2 . . 2 5 . . . 1 . . 1 . . 2 1 . 2 . 2 Indirectly . | . . . . . . . . . . . . . . . . . . . . . . . . . . . . . . . . . . . . . . . Trap Hack Attempts 13 | . . . 13 . . . . . . . . . . . . . . . . . . . . . . . . . . . . . . . . . . . Triggered . | . . . . . . . . . . . . . . . . . . . . . . . . . . . . . . . . . . . . . . . Disarmed 1 | . . . 1 . . . . . . . . . . . . . . . . . . . . . . . . . . . . . . . . . . . Reprogrammed 6 | . . . . . . . . . . . . . . . . . . . . . . . . . . . . . 6 . . . . . . . . . Reused 6 | . . . . . . . . . . . . . . . . . . . . . . . . . . . . . 6 . . . . . . . . . Traps Extracted . | . . . . . . . . . . . . . . . . . . . . . . . . . . . . . . . . . . . . . . . Installed . | . . . . . . . . . . . . . . . . . . . . . . . . . . . . . . . . . . . . . . . Triggered 6 | . . . . . . . . . . . . . . . . . . . . . . . . . . . . . 6 . . . . . . . . . Machines | -11 -10 -10 -9 -9 -8 -8 -8 -8 -8 -8 -7 -7 -7 -7 -6 -6 -6 -6 -6 -6 -6 -6 -6 -5 -5 -5 -5 -4 -4 -4 -3 -3 -2 -2 -2 -2 -1 -1 ---------- Run | Yrd Mat Min Mat Sto Mat Gar Mat Gar Mat Gar Fac Gar Fac Gar Fac Was Fac Gar Ext Cet Arc Hub Gar Fac Upp Upp War Pro Fac Gar Res Gar Res Gar Res Gar Acc Com Machines Disabled 132 | . . . 3 4 . 2 3 4 2 3 1 2 19 6 . . 1 4 2 . 4 12 7 4 . . . . 5 6 1 7 1 8 3 8 6 4 Max in Single Turn 4 | . . . 1 1 . 1 1 1 1 1 1 1 4 1 . . . 1 1 . 1 1 1 . . . . . 2 1 . 1 . 1 . 1 2 1 Garrison Access 2 | . . . . . . . . . . . . . 1 . . . . . . . . . . . . . . . . . . . . . . . 1 . Garrison Relay 48 | . . . . . . 3 . 4 . 3 . 2 . 5 . . . 3 . . . . 6 . . . . . . 5 . 6 . 5 . 6 . . Phase Generator 1 | . . . . . . . . . . . . . . . . . . . . . . . . . . . . . . . . . . . . . . 1 Network Hub 2 | . . . . . . . . . . . . . . . . . . . . . . 2 . . . . . . . . . . . . . . . . Machines Repaired . | . . . . . . . . . . . . . . . . . . . . . . . . . . . . . . . . . . . . . . . Machines Dismantled 1 | . . . . 1 . . . . . . . . . . . . . . . . . . . . . . . . . . . . . . . . . . Machines Sabotaged 1 | . . . . . . . . . . . . . . . . . . . . . . 1 . . . . . . . . . . . . . . . . Overloaded Fab Kills . | . . . . . . . . . . . . . . . . . . . . . . . . . . . . . . . . . . . . . . . Hacking | -11 -10 -10 -9 -9 -8 -8 -8 -8 -8 -8 -7 -7 -7 -7 -6 -6 -6 -6 -6 -6 -6 -6 -6 -5 -5 -5 -5 -4 -4 -4 -3 -3 -2 -2 -2 -2 -1 -1 --------- Run | Yrd Mat Min Mat Sto Mat Gar Mat Gar Mat Gar Fac Gar Fac Gar Fac Was Fac Gar Ext Cet Arc Hub Gar Fac Upp Upp War Pro Fac Gar Res Gar Res Gar Res Gar Acc Com Machines Accessed 150 | . 5 . 13 13 12 3 9 2 10 3 8 2 9 4 1 . 4 2 5 . . 11 3 . . . . . 5 1 3 1 2 2 6 2 6 3 Terminals 123 | . 5 . 11 11 11 3 7 2 8 3 5 2 5 4 . . 3 2 5 . . 10 3 . . . . . 3 1 1 1 . 2 5 2 5 3 Fabricators 4 | . . . . . . . . . . . . . 1 . . . . . . . . . . . . . . . 1 . 1 . 1 . . . . . Repair Stations 7 | . . . 2 2 . . . . 1 . 1 . . . 1 . . . . . . . . . . . . . . . . . . . . . . . Recycling Units . | . . . . . . . . . . . . . . . . . . . . . . . . . . . . . . . . . . . . . . . Scanalyzers 3 | . . . . . . . 1 . . . 1 . 1 . . . . . . . . . . . . . . . . . . . . . . . . . Garrison Access 13 | . . . . . 1 . 1 . 1 . 1 . 2 . . . 1 . . . . 1 . . . . . . 1 . 1 . 1 . 1 . 1 . Total Hacks 442 | . 13 . 38 39 37 6 31 4 25 5 23 3 34 8 2 . 11 4 14 . . 31 8 . . . . . 25 4 5 3 4 6 31 11 12 5 Successful 208 | . 4 . 26 14 23 3 21 2 17 2 15 2 17 3 1 . 6 2 3 . . 11 3 . . . . . 13 1 1 1 2 3 8 2 1 1 Failed 231 | . 8 . 11 25 13 3 10 2 8 3 8 1 17 5 1 . 5 2 11 . . 20 5 . . . . . 12 3 4 2 2 3 23 9 11 4 Catastrophic 48 | . 1 . 1 3 2 . . . 1 3 . . 1 . . . 1 . 3 . . 3 2 . . . . . 3 . 2 . 1 1 13 1 5 1 Database Lockouts 3 | . 1 . 1 . 1 . . . . . . . . . . . . . . . . . . . . . . . . . . . . . . . . . Manual 236 | . 9 . 28 16 28 . 16 1 14 1 15 . 19 1 2 . 4 1 4 1 . 24 5 . . . . . 13 . 2 . . 4 16 3 4 5 Terminals 369 | . 13 . 30 31 34 6 22 4 20 5 17 3 22 8 . . 9 4 14 . . 28 8 . . . . . 20 4 2 3 . 6 29 11 11 5 Fabricators 12 | . . . . . . . . . . . . . 6 . . . . . . . . . . . . . . . 2 . 2 . 2 . . . . . Repair Stations 24 | . . . 8 8 . . . . 4 . 2 . . . 2 . . . . . . . . . . . . . . . . . . . . . . . Recycling Units . | . . . . . . . . . . . . . . . . . . . . . . . . . . . . . . . . . . . . . . . Scanalyzers 11 | . . . . . . . 8 . . . 2 . 1 . . . . . . . . . . . . . . . . . . . . . . . . . Garrison Access 26 | . . . . . 3 . 1 . 1 . 2 . 5 . . . 2 . . . . 3 . . . . . . 3 . 1 . 2 . 2 . 1 . Terminal Hacks 101 | . 3 . 7 8 12 3 6 2 10 2 6 2 7 3 . . 3 2 2 . . 4 3 . . . . . 6 1 . 1 . 2 4 2 . . Part Schematic 2 | . . . . . . . . . . . . . 1 . . . . . . . . . . . . . . . 1 . . . . . . . . . Robot Schematic 3 | . 1 . . . . . . . . . 2 . . . . . . . . . . . . . . . . . . . . . . . . . . . Robot Analysis 5 | . . . 2 . 2 . . . 1 . . . . . . . . . . . . . . . . . . . . . . . . . . . . . Prototype ID Bank 7 | . . . 1 1 1 . . . 3 . . . 1 . . . . . . . . . . . . . . . . . . . . . . . . . Open Door 8 | . . . . 3 . 1 . . . 1 . . . . . . . . 2 . . . 1 . . . . . . . . . . . . . . . Branch Access Points 1 | . 1 . . . . . . . . . . . . . . . . . . . . . . . . . . . . . . . . . . . . . Emergency Access Points 9 | . . . . . . 1 . 1 . 1 . . . 1 . . . 1 . . . . 1 . . . . . . 1 . . . 1 . 1 . . Machine Index 2 | . . . . . . . 1 . . . . . . . . . . . . . . . . . . . . . 1 . . . . . . . . . Terminal Index 6 | . . . . . . . 1 . . . 1 . 1 . . . 1 . . . . 1 . . . . . . . . . . . . 1 . . . Garrison Index 2 | . . . . . . . . . . . 1 . . . . . 1 . . . . . . . . . . . . . . . . . . . . . Alert Level 5 | . . . 1 2 2 . . . . . . . . . . . . . . . . . . . . . . . . . . . . . . . . . Unreport Threat 23 | . . . 2 1 3 . 3 . 2 . 2 . 3 . . . 1 . . . . 3 . . . . . . 1 . . . . . 2 . . . Locate Traps 5 | . . . 1 . 2 . . . 1 . . . . . . . . . . . . . . . . . . . 1 . . . . . . . . . Reprogram Traps 1 | . . . . . . . . . . . . . . . . . . . . . . . . . . . . . 1 . . . . . . . . . Maintenance Status 1 | . 1 . . . . . . . . . . . . . . . . . . . . . . . . . . . . . . . . . . . . . Patrol Status 2 | . . . . . . . . . 1 . . . . . . . . . . . . . . . . . . . 1 . . . . . . . . . Recall Reinforcements 1 | . . . . . . . . . . . . . . . . . . . . . . . . . . . . . . . . . . . 1 . . . Hauler Manifests 5 | . . . . 1 1 . 1 . 1 . . . 1 . . . . . . . . . . . . . . . . . . . . . . . . . Zone Layout 2 | . . . . . 1 . . . 1 . . . . . . . . . . . . . . . . . . . . . . . . . . . . . Garrison Registry 6 | . . . . . . . . 1 . . . 1 . 1 . . . 1 . . . . . . . . . . . . . 1 . 1 . . . . Patrol Navigation 1 | . . . . . . . . . . . . . . 1 . . . . . . . . . . . . . . . . . . . . . . . . Security Stations 4 | . . . . . . 1 . . . . . 1 . . . . . . . . . . 1 . . . . . . . . . . . . 1 . . Fabricator Hacks 8 | . . . . . . . . . . . . . 6 . . . . . . . . . . . . . . . 2 . . . . . . . . . Load Schematic 4 | . . . . . . . . . . . . . 3 . . . . . . . . . . . . . . . 1 . . . . . . . . . Build 4 | . . . . . . . . . . . . . 3 . . . . . . . . . . . . . . . 1 . . . . . . . . . Repair Station Hacks 18 | . . . 8 5 . . . . 4 . 1 . . . . . . . . . . . . . . . . . . . . . . . . . . . Scan Component 10 | . . . 4 3 . . . . 2 . 1 . . . . . . . . . . . . . . . . . . . . . . . . . . . Repair 8 | . . . 4 2 . . . . 2 . . . . . . . . . . . . . . . . . . . . . . . . . . . . . Recycling Unit Hacks . | . . . . . . . . . . . . . . . . . . . . . . . . . . . . . . . . . . . . . . . Scanalyzer 10 | . . . . . . . 8 . . . 2 . . . . . . . . . . . . . . . . . . . . . . . . . . . Insert Component 5 | . . . . . . . 4 . . . 1 . . . . . . . . . . . . . . . . . . . . . . . . . . . Analyze 5 | . . . . . . . 4 . . . 1 . . . . . . . . . . . . . . . . . . . . . . . . . . . Garrison Access Hacks 19 | . . . . . 1 . 1 . 1 . 2 . 3 . . . 2 . . . . 2 . . . . . . 1 . 1 . 2 . 2 . 1 . Unlock Access 11 | . . . . . 1 . 1 . 1 . 1 . 1 . . . 1 . . . . 1 . . . . . . 1 . 1 . 1 . 1 . . . Seal Access 2 | . . . . . . . . . . . . . 1 . . . . . . . . . . . . . . . . . . . . . . . 1 . Coupler Status 6 | . . . . . . . . . . . 1 . 1 . . . 1 . . . . 1 . . . . . . . . . . 1 . 1 . . . Unauthorized Hacks 52 | . 1 . 11 1 10 . 6 . 2 . 4 . 1 . 1 . 1 . 1 . . 5 . . . . . . 4 . . . . 1 2 . . 1 Terminals 47 | . 1 . 11 1 9 . 6 . 2 . 4 . . . . . 1 . 1 . . 4 . . . . . . 3 . . . . 1 2 . . 1 Track 1 | . . . . . . . 1 . . . . . . . . . . . . . . . . . . . . . . . . . . . . . . . Botnet 12 | . . . 1 1 2 . 2 . 1 . 1 . . . . . 1 . . . . . . . . . . . 1 . . . . 1 1 . . . Disrupt 1 | . . . . . 1 . . . . . . . . . . . . . . . . . . . . . . . . . . . . . . . . . Operators 7 | . . . . . 1 . 1 . 1 . . . . . . . . . 1 . . . . . . . . . 1 . . . . . 1 . . 1 Skim 22 | . 1 . 10 . 5 . 2 . . . 3 . . . . . . . . . . . . . . . . . 1 . . . . . . . . . Sabotage 3 | . . . . . . . . . . . . . . . . . . . . . . 3 . . . . . . . . . . . . . . . . Search 1 | . . . . . . . . . . . . . . . . . . . . . . 1 . . . . . . . . . . . . . . . . Fabricators . | . . . . . . . . . . . . . . . . . . . . . . . . . . . . . . . . . . . . . . . Repair Stations 1 | . . . . . . . . . . . . . . . 1 . . . . . . . . . . . . . . . . . . . . . . . Mechanics 1 | . . . . . . . . . . . . . . . 1 . . . . . . . . . . . . . . . . . . . . . . . Recycling Units . | . . . . . . . . . . . . . . . . . . . . . . . . . . . . . . . . . . . . . . . Scanalyzers . | . . . . . . . . . . . . . . . . . . . . . . . . . . . . . . . . . . . . . . . Garrison Access 4 | . . . . . 1 . . . . . . . 1 . . . . . . . . 1 . . . . . . 1 . . . . . . . . . Restock 1 | . . . . . . . . . . . . . . . . . . . . . . . . . . . . . 1 . . . . . . . . . Reprogram 1 | . . . . . 1 . . . . . . . . . . . . . . . . . . . . . . . . . . . . . . . . . Eject 2 | . . . . . . . . . . . . . 1 . . . . . . . . 1 . . . . . . . . . . . . . . . . Data Cores Recovered 1 | . . . . . . . . . . . 1 . . . . . . . . . . . . . . . . . . . . . . . . . . . Used . | . . . . . . . . . . . . . . . . . . . . . . . . . . . . . . . . . . . . . . . Hacking Detections 130 | . 4 . 12 12 12 2 7 2 9 2 7 1 7 4 1 . 4 1 5 1 . 8 2 . . . . . 5 1 3 . 1 1 6 2 5 3 Full Trace Events 4 | . . . . . . . . . . . . . . 1 . . . . . . . 2 . . . . . . 1 . . . . . . . . . Feedback Events . | . . . . . . . . . . . . . . . . . . . . . . . . . . . . . . . . . . . . . . . Feedback Blocked . | . . . . . . . . . . . . . . . . . . . . . . . . . . . . . . . . . . . . . . . Robot Schematics Acquired 3 | . 1 . . . . . . . . . 2 . . . . . . . . . . . . . . . . . . . . . . . . . . . Robots Built 6 | . . . . . . . . . . . . . 5 . . . . . . . . . . . . . . . 1 . . . . . . . . . Authchips 3 | . . . . . . . . . . . . . 3 . . . . . . . . . . . . . . . . . . . . . . . . . Time 184 | . . . . . . . . . . . . . 126 . . . . . . . . . . . . . . . 58 . . . . . . . . . Total Robot Build Rating 22 | . . . . . . . . . . . . . 19 . . . . . . . . . . . . . . . 3 . . . . . . . . . Part Schematics Acquired 7 | . . . . . . . 4 . . . 1 . 1 . . . . . . . . . . . . . . . 1 . . . . . . . . . Parts Built . | . . . . . . . . . . . . . . . . . . . . . . . . . . . . . . . . . . . . . . . Authchips . | . . . . . . . . . . . . . . . . . . . . . . . . . . . . . . . . . . . . . . . Time . | . . . . . . . . . . . . . . . . . . . . . . . . . . . . . . . . . . . . . . . Total Part Build Rating . | . . . . . . . . . . . . . . . . . . . . . . . . . . . . . . . . . . . . . . . Parts Repaired 8 | . . . 4 2 . . . . 2 . . . . . . . . . . . . . . . . . . . . . . . . . . . . . Time 354 | . . . 153 89 . . . . 112 . . . . . . . . . . . . . . . . . . . . . . . . . . . . . Parts Recycled . | . . . . . . . . . . . . . . . . . . . . . . . . . . . . . . . . . . . . . . . Recycled Matter . | . . . . . . . . . . . . . . . . . . . . . . . . . . . . . . . . . . . . . . . Retrieved Matter . | . . . . . . . . . . . . . . . . . . . . . . . . . . . . . . . . . . . . . . . Retrieved Components . | . . . . . . . . . . . . . . . . . . . . . . . . . . . . . . . . . . . . . . . Parts Scanalyzed 5 | . . . . . . . 4 . . . 1 . . . . . . . . . . . . . . . . . . . . . . . . . . . Part Schematics Acquired 5 | . . . . . . . 4 . . . 1 . . . . . . . . . . . . . . . . . . . . . . . . . . . Parts Damaged 1 | . . . . . . . 1 . . . . . . . . . . . . . . . . . . . . . . . . . . . . . . . Bothacking | -11 -10 -10 -9 -9 -8 -8 -8 -8 -8 -8 -7 -7 -7 -7 -6 -6 -6 -6 -6 -6 -6 -6 -6 -5 -5 -5 -5 -4 -4 -4 -3 -3 -2 -2 -2 -2 -1 -1 ------------ Run | Yrd Mat Min Mat Sto Mat Gar Mat Gar Mat Gar Fac Gar Fac Gar Fac Was Fac Gar Ext Cet Arc Hub Gar Fac Upp Upp War Pro Fac Gar Res Gar Res Gar Res Gar Acc Com Used RIF Installer 12 | . . . . . . 1 . 2 . 1 . 1 . 1 . . . 1 . . . . 1 . . . . . . 1 . 1 . 1 . 1 . . Coupler Efficiency 1 | . . . . . . . . 1 . . . . . . . . . . . . . . . . . . . . . . . . . . . . . . Hotswap 1 | . . . . . . . . . . . . . . . . . . . . . . . . . . . . . . 1 . . . . . . . . Code Merge 1 | . . . . . . . . . . . . . . . . . . 1 . . . . . . . . . . . . . . . . . . . . Command Fork 1 | . . . . . . . . . . . . . . . . . . . . . . . . . . . . . . . . . . 1 . . . . Signal Jammer 1 | . . . . . . . . . . 1 . . . . . . . . . . . . . . . . . . . . . . . . . . . . Zone Cloak 1 | . . . . . . . . . . . . . . . . . . . . . . . . . . . . . . . . 1 . . . . . . Patrol Navigation 1 | . . . . . . . . 1 . . . . . . . . . . . . . . . . . . . . . . . . . . . . . . Structural Interface 1 | . . . . . . . . . . . . . . . . . . . . . . . 1 . . . . . . . . . . . . . . . Program Shield 1 | . . . . . . . . . . . . 1 . . . . . . . . . . . . . . . . . . . . . . . . . . Autoassimilate 1 | . . . . . . . . . . . . . . 1 . . . . . . . . . . . . . . . . . . . . . . . . Crosswire 1 | . . . . . . . . . . . . . . . . . . . . . . . . . . . . . . . . . . . . 1 . . Robots Hacked 265 | . . . 1 . . . 2 11 7 8 8 4 13 9 2 6 2 15 9 . 3 8 9 1 . . . . 6 7 10 18 8 11 6 16 40 25 Non-combat 25 | . . . 1 . . . 2 . 2 . 1 . 3 . 1 . 1 1 1 . . . . . . . . . 2 . 2 . 1 . 1 . 6 . Combat 240 | . . . . . . . . 11 5 8 7 4 10 9 1 6 1 14 8 . 3 8 9 1 . . . . 4 7 8 18 7 11 5 16 34 25 Autoassimilated 44 | . . . . . . . . . . . . . . . . . 1 2 1 . 1 1 . 1 . . . . 1 . 1 3 . 1 2 3 13 13 Robot Hacks Applied 251 | . . . 1 . . . 3 12 9 8 9 4 17 9 2 6 1 13 10 . 2 7 9 . . . . . 6 7 13 15 10 10 15 13 28 12 parse_system 1 | . . . . . . . . . . . . . . . . . . 1 . . . . . . . . . . . . . . . . . . . . no_distress 1 | . . . 1 . . . . . . . . . . . . . . . . . . . . . . . . . . . . . . . . . . . find_chute 1 | . . . . . . . . . . . . . . . 1 . . . . . . . . . . . . . . . . . . . . . . . deconstruct_machine 1 | . . . . . . . 1 . . . . . . . . . . . . . . . . . . . . . . . . . . . . . . . find_fabricator 4 | . . . . . . . . . . . . . 2 . . . . . . . . . . . . . . . . . . . 1 . . . 1 . drop_inventory 6 | . . . . . . . . . . . . . . . . . 1 . . . . . . . . . . . 1 . 1 . 1 . . . 2 . recall_reinforcements 1 | . . . . . . . . . . . . . . . . . . . . . . . . . . . . . . . 1 . . . . . . . purge_threat 20 | . . . . . . . 1 . 1 . . . 2 . . . . . 3 . . . . . . . . . 1 . 3 . . . 9 . . . block_reporting 2 | . . . . . . . . . . . . . 1 . . . . . . . . . . . . . . . . . . . . . 1 . . . clear_repairs 1 | . . . . . . . . . . . . . . . . . . . . . . . . . . . . . . . . . . . 1 . . . map_route 4 | . . . . . . . . . . . . . . . . . . . . . . . . . . . . . . . . . . . . . 4 . ignore_targets 6 | . . . . . . . . . . . . . . . . 6 . . . . . . . . . . . . . . . . . . . . . . find_garrison 3 | . . . . . . . . . 1 . . . 1 . . . . . . . . . . . . . . . . . . . 1 . . . . . tweak_propulsion 1 | . . . . . . . . 1 . . . . . . . . . . . . . . . . . . . . . . . . . . . . . . scatter_targeting 1 | . . . . . . . . . . . . . . . . . . . . . . . . . . . . . . . . . . . . . . 1 disrupt_area 1 | . . . . . . . . . . . 1 . . . . . . . . . . . . . . . . . . . . . . . . . . . overload_power 1 | . . . . . . . . . . . . . . . . . . . . . . . . . . . . . . . . . . . . . 1 . amplify_resonance 24 | . . . . . . . . 3 . 3 2 . . 2 . . . 2 . . . 1 . . . . . . . 3 1 3 1 . . 2 1 . disable_weapons 3 | . . . . . . . . . . . . . . . 1 . . . . . . . 1 . . . . . . . . . . . . 1 . . overwrite_iff 47 | . . . . . . . . 2 2 3 3 1 3 2 . . . 5 4 . . 1 . . . . . . 1 1 2 4 1 . 1 3 7 1 formatsys_low 8 | . . . . . . . 1 . 2 . 1 . 1 . . . . . . . . . . . . . . . 1 . 1 . . . 1 . . . formatsys_high 112 | . . . . . . . . 6 3 2 2 3 7 5 . . . 5 3 . 2 5 8 . . . . . 2 3 4 8 5 10 2 7 10 10 formatsys_deep 2 | . . . . . . . . . . . . . . . . . . . . . . . . . . . . . . . . . . . . . 2 . Relay Couplers Released 213 | . . . . . . 15 . 13 . 13 . 11 4 21 . . . 13 . . . 3 26 . . . . . 4 22 . 22 . 22 . 24 . . Ejected 7 | . . . . . . . . . . . . . 4 . . . . . . . . 3 . . . . . . . . . . . . . . . . Machine Destruction 195 | . . . . . . 12 . 13 . 13 . 7 . 21 . . . 13 . . . . 26 . . . . . . 22 . 22 . 22 . 24 . . Programmers 11 | . . . . . . 3 . . . . . 4 . . . . . . . . . . . . . . . . 4 . . . . . . . . . Attached 87 | . . . . . . . 1 6 3 5 3 3 7 4 . 1 . 5 3 . 1 3 8 1 . . . . 1 4 . 6 1 7 . 3 5 6 Crosswired 6 | . . . . . . . . . . . . . . . . . . . . . . . . . . . . . . . . . . . . 6 . . Merged Code Value 370 | . . . . . . . . . . . . . . . . . . . . . . . 27 . . . . . . 43 . 64 . 106 . 130 . . Fabnet Peak Effective % . | . . . . . . . . . . . . . . . . . . . . . . . . . . . . . . . . . . . . . . . Robots Rewired 49 | . . . . . . . . 3 . . . . . . . . . 2 10 . . . 26 . . . . . . . . . . 6 . 2 . . Allies Hacked 14 | . . . . . . . . 1 . . 2 . 1 2 . . . . . . . . 1 . . . . . . 1 . . . . . . . 6 Hacks Repelled . | . . . . . . . . . . . . . . . . . . . . . . . . . . . . . . . . . . . . . . . Allies | -11 -10 -10 -9 -9 -8 -8 -8 -8 -8 -8 -7 -7 -7 -7 -6 -6 -6 -6 -6 -6 -6 -6 -6 -5 -5 -5 -5 -4 -4 -4 -3 -3 -2 -2 -2 -2 -1 -1 -------- Run | Yrd Mat Min Mat Sto Mat Gar Mat Gar Mat Gar Fac Gar Fac Gar Fac Was Fac Gar Ext Cet Arc Hub Gar Fac Upp Upp War Pro Fac Gar Res Gar Res Gar Res Gar Acc Com Total Allies 335 | . . 3 . . 1 2 1 11 7 6 6 4 17 11 . 19 1 16 21 5 3 7 34 4 . . . . 6 6 8 15 6 19 6 20 40 30 Largest Group 20 | . . 3 2 . 1 2 1 3 4 3 2 3 10 11 2 19 20 11 19 15 16 16 15 14 5 . . . 3 6 8 8 6 14 16 13 11 15 Highest-Rated Group 1401 | . . 73 42 . 15 70 10 47 63 51 113 154 310 313 64 684 713 515 876 937 925 925 664 634 149 . . . 112 316 476 445 394 1078 1188 984 878 1401 Highest-Rated Ally 219 | . . 31 31 . 15 39 10 16 16 29 90 90 90 43 32 50 50 85 159 159 96 96 119 119 49 . . . 47 116 104 116 69 148 148 148 219 215 Total Orders 70 | . . . . . . . 1 2 2 12 1 4 4 5 . 2 . 2 9 1 3 2 7 . . . . . 1 3 . . . 3 2 2 2 . STAY 37 | . . . . . . . 1 1 1 6 . 2 1 2 . 2 . . 7 1 2 2 4 . . . . . . 2 . . . 1 1 . 1 . ROAM 3 | . . . . . . . . . . . . . . . . . . 1 . . . . . . . . . . . . . . . 1 . 1 . . FOLLOW 24 | . . . . . . . . 1 1 6 . 2 1 1 . . . 1 2 . 1 . 3 . . . . . . 1 . . . 1 1 1 1 . AID 6 | . . . . . . . . . . . 1 . 2 2 . . . . . . . . . . . . . . 1 . . . . . . . . . Ally Attacks 2348 | . . 20 8 . . 19 . 14 51 18 16 35 54 59 8 41 58 151 202 87 1 203 164 37 32 . . . 8 53 45 97 11 105 151 135 262 203 Total Damage 102854 | . . 276 106 . . 330 . 94 811 263 220 1053 2274 1598 304 1902 2244 5020 5152 1890 26 6831 5038 2251 1155 . . . 206 1768 1316 2751 407 4271 6430 5212 13095 28560 Kills 560 | . . 4 . . . 1 . 1 11 2 2 11 16 14 2 1 17 26 33 6 2 51 36 13 13 . . . 3 15 6 16 4 21 41 23 67 102 Allies Corrupted 16 | . . . . . . . . . . 1 1 . . . . . . . . . . 1 . . 1 . . . 1 . . . . 2 1 2 2 4 Allies Melted 5 | . . . . . . . . . . 1 . . 1 . . . . . . . . 1 . . . . . . . 1 . . . . 1 . . . Intel | -11 -10 -10 -9 -9 -8 -8 -8 -8 -8 -8 -7 -7 -7 -7 -6 -6 -6 -6 -6 -6 -6 -6 -6 -5 -5 -5 -5 -4 -4 -4 -3 -3 -2 -2 -2 -2 -1 -1 ------- Run | Yrd Mat Min Mat Sto Mat Gar Mat Gar Mat Gar Fac Gar Fac Gar Fac Was Fac Gar Ext Cet Arc Hub Gar Fac Upp Upp War Pro Fac Gar Res Gar Res Gar Res Gar Acc Com Robot Analysis Total 5 | . . . 2 . 2 . . . 1 . . . . . . . . . . . . . . . . . . . . . . . . . . . . . Derelict Logs Recovered 7 | . . 2 . . . . . . . . . . . . . . . . . . . . . . 2 2 . 1 . . . . . . . . . . Drone Launches . | . . . . . . . . . . . . . . . . . . . . . . . . . . . . . . . . . . . . . . . Drone Recoveries . | . . . . . . . . . . . . . . . . . . . . . . . . . . . . . . . . . . . . . . . Exploration | -11 -10 -10 -9 -9 -8 -8 -8 -8 -8 -8 -7 -7 -7 -7 -6 -6 -6 -6 -6 -6 -6 -6 -6 -5 -5 -5 -5 -4 -4 -4 -3 -3 -2 -2 -2 -2 -1 -1 ------------- Run | Yrd Mat Min Mat Sto Mat Gar Mat Gar Mat Gar Fac Gar Fac Gar Fac Was Fac Gar Ext Cet Arc Hub Gar Fac Upp Upp War Pro Fac Gar Res Gar Res Gar Res Gar Acc Com Turns Passed 48793 | 70 1169 834 2561 1844 3561 2240 2322 1897 1814 1937 1468 685 2526 1564 314 890 750 1311 1401 401 1209 1375 2162 408 1297 672 124 314 933 1113 735 912 371 1368 495 883 1447 1416 Spaces Moved 21102 | 42 555 473 1193 816 1431 748 718 642 620 695 488 246 897 535 118 289 285 455 499 141 324 730 1129 214 653 316 78 181 347 600 401 446 213 721 255 506 825 1277 Core 634 | 8 . . . . . . . . . . . . . . . . . . . . . . . . . . . . . . . . . . . . . 626 Treads 20468 | 34 555 473 1193 816 1431 748 718 642 620 695 488 246 897 535 118 289 285 455 499 141 324 730 1129 214 653 316 78 181 347 600 401 446 213 721 255 506 825 651 Legs . | . . . . . . . . . . . . . . . . . . . . . . . . . . . . . . . . . . . . . . . Wheels . | . . . . . . . . . . . . . . . . . . . . . . . . . . . . . . . . . . . . . . . Hover . | . . . . . . . . . . . . . . . . . . . . . . . . . . . . . . . . . . . . . . . Flight . | . . . . . . . . . . . . . . . . . . . . . . . . . . . . . . . . . . . . . . . Fastest Speed 50 | 50 160 160 160 160 160 233 250 250 250 250 250 250 170 170 250 250 250 250 250 160 160 160 160 160 160 160 160 160 160 160 155 155 155 155 155 155 155 50 Average Speed 193 | 143 180 160 160 160 225 242 250 250 250 250 250 250 249 247 250 250 250 250 250 174 160 160 160 160 176 210 160 160 193 160 157 155 155 155 155 155 159 102 Slowest Speed 490 | 160 240 160 160 160 241 250 250 490 250 250 250 250 250 250 250 250 250 250 250 250 240 160 240 160 240 240 160 160 240 160 163 155 155 155 155 155 232 155 Overloaded Moves . | . . . . . . . . . . . . . . . . . . . . . . . . . . . . . . . . . . . . . . . Propulsion Burnouts . | . . . . . . . . . . . . . . . . . . . . . . . . . . . . . . . . . . . . . . . Robots Hopped 2 | . . . . . . . . . . . . . . 2 . . . . . . . . . . . . . . . . . . . . . . . . Cave-ins Triggered . | . . . . . . . . . . . . . . . . . . . . . . . . . . . . . . . . . . . . . . . Exploration Rate (%) 55 | 3 87 97 88 96 83 91 55 64 55 84 21 47 30 87 6 87 12 68 65 56 86 64 96 7 84 57 15 39 10 93 11 69 8 80 10 85 29 47 Regions Visited 38 Branch Regions 11 Pre-discovered Areas 7 | . . 1 2 1 3 . . . . . . . . . . . . . . . . . . . . . . . . . . . . . . . . . Known Exits Taken 15 | . 1 . 1 1 1 . 1 . 1 . 1 . 1 . . . 1 . . . . 1 . . . 1 . . 1 . 1 . 1 . 1 . . . Unknown Exits Taken 10 | 1 . 1 . . . . . . . . . . . . . . . . 1 1 1 . . 1 1 . 1 1 . . . . . . . . 1 . Scrap Searched 11 | . . 3 . . . . . . . . . . . . . . . . . . . . . . 4 3 . 1 . . . . . . . . . . Spaces Dug 159 | . . . . 1 . 6 21 40 1 . 2 1 11 1 . 2 8 6 . . . 17 12 . . 4 . . 7 . . . . . 1 2 14 2 Terrain Destroyed 586 | . . . 37 1 19 41 27 69 10 6 33 1 24 20 . 13 8 6 1 . 16 35 67 6 42 4 . 14 19 4 . . . 19 1 4 22 17 Melee 20 | . . . . 1 . 6 13 . . . . . . . . . . . . . . . . . . . . . . . . . . . . . . . Projectile 302 | . . . . . . 1 14 5 10 6 14 1 24 7 . 13 8 6 1 . 16 35 4 6 42 4 . 14 19 4 . . . 19 1 4 22 2 AOE 264 | . . . 37 . 19 34 . 64 . . 19 . . 13 . . . . . . . . 63 . . . . . . . . . . . . . . 15 Terrain Rammed . | . . . . . . . . . . . . . . . . . . . . . . . . . . . . . . . . . . . . . . . Walls Destroyed . | . . . . . . . . . . . . . . . . . . . . . . . . . . . . . . . . . . . . . . . Machines Disabled . | . . . . . . . . . . . . . . . . . . . . . . . . . . . . . . . . . . . . . . . Actions | -11 -10 -10 -9 -9 -8 -8 -8 -8 -8 -8 -7 -7 -7 -7 -6 -6 -6 -6 -6 -6 -6 -6 -6 -5 -5 -5 -5 -4 -4 -4 -3 -3 -2 -2 -2 -2 -1 -1 --------- Run | Yrd Mat Min Mat Sto Mat Gar Mat Gar Mat Gar Fac Gar Fac Gar Fac Was Fac Gar Ext Cet Arc Hub Gar Fac Upp Upp War Pro Fac Gar Res Gar Res Gar Res Gar Acc Com Total 26966 | 49 631 521 1597 1124 1608 972 1044 823 819 822 660 294 1114 690 134 371 311 601 615 277 946 895 1446 268 737 322 77 192 565 755 502 664 253 976 355 604 955 1377 Wait 2536 | . 15 32 188 138 29 24 195 8 130 13 94 . 107 38 9 16 9 52 41 90 541 59 109 37 49 . . 5 135 49 40 69 7 95 74 28 8 3 Move 21068 | 41 554 472 1192 815 1431 747 718 641 620 694 487 245 897 530 118 288 285 453 499 140 323 730 1128 213 652 315 77 180 346 599 400 445 213 720 254 505 824 1277 Hop 2 | . . . . . . . . . . . . . . 2 . . . . . . . . . . . . . . . . . . . . . . . . Pick Up 218 | 2 7 1 18 11 11 17 . 15 . 13 3 6 6 15 . 1 . 10 . 6 1 1 22 . 1 1 . . 3 10 4 9 3 11 . 7 . 3 Fast Attach 132 | 6 2 . 10 5 3 5 . 4 . 3 1 1 3 4 1 2 . 3 . 3 6 5 14 6 . 2 . . 2 6 5 7 4 8 . 4 5 2 Attach 107 | . 1 . 3 2 4 6 . 4 3 1 3 3 11 4 1 . . 4 3 2 . 5 8 2 3 . . . 4 2 1 5 1 4 . 2 5 10 Detach 70 | . 1 . 2 1 . 2 . 3 2 1 1 4 2 2 . 4 1 2 . 3 . 1 6 3 . . . . 3 2 . 2 . 6 1 2 4 9 Swap 285 | . 3 1 22 15 10 21 21 21 11 18 15 2 18 11 . 7 5 4 1 1 1 6 12 1 . 1 . . 11 5 4 11 4 6 . 4 7 5 Drop 193 | . 1 . 15 14 18 14 1 10 . 9 1 2 4 6 . 2 1 9 . 9 5 2 11 1 1 2 . . 2 8 8 8 4 11 . 5 2 7 Fire 2050 | . 43 14 127 100 94 107 85 80 45 61 53 28 55 68 2 51 10 61 46 23 69 81 106 5 30 1 . 7 58 71 37 104 17 111 23 46 98 33 Melee 42 | . . . 1 4 . 15 18 4 . . . . . . . . . . . . . . . . . . . . . . . . . . . . . . Ram 17 | . . . . . . . . . . . . . . . . . . . . . . . . . . . . . . . . . . . . . . 17 Kick . | . . . . . . . . . . . . . . . . . . . . . . . . . . . . . . . . . . . . . . . Crush 77 | . 4 1 6 10 8 6 6 1 6 1 1 . 10 . 3 . . . 5 . . 4 . . . . . . . 1 2 . . . 1 . 1 . Escape Stasis 42 | . . . . . . 8 . . . 8 . 2 . 8 . . . 2 4 . . . 2 . . . . . . . . . . . . . . 8 Rewire 105 | . . . . . . . . 32 2 . 1 1 1 2 . . . 1 16 . . 1 28 . 1 . . . 1 2 1 4 . 4 2 1 1 3 Trap 13 | . . . 13 . . . . . . . . . . . . . . . . . . . . . . . . . . . . . . . . . . . Miscellaneous 9 | . . . . 9 . . . . . . . . . . . . . . . . . . . . . . . . . . . . . . . . . . Route ------- -11/Scrapyard -10/Materials (discovered 4 exits: *Mat x2 / *Min x2) -10/Mines (discovered 2 exits: *Mat x2) -9/Materials (discovered 5 exits: *Mat x3 / *Min / *Sto) -9/Storage (discovered 2 exits: *Mat / Rec) -8/Materials (discovered 4 exits: *Fac x3 / Gar) -8/Garrison (discovered 3 exits: *Mat x3) -8/Materials (discovered 4 exits: Fac x3 / Gar) -8/Garrison (discovered 4 exits: *Fac x3 / *Mat) -8/Materials (discovered 2 exits: *Fac / Gar) -8/Garrison (discovered 3 exits: *Fac x3) -7/Factory (discovered 2 exits: [*Low] / Gar) -7/Garrison (discovered 3 exits: *Fac x3) -7/Factory -7/Garrison (discovered 3 exits: *Fac x3) -6/Factory -6/Waste -6/Factory (discovered 2 exits: [*Fac] / Gar) -6/Garrison (discovered 3 exits: *Ext x3) -6/Extension (discovered 2 exits: [*Fac] / *Cet) -6/Cetus (discovered 2 exits: [*Fac] / *Arc) -6/Archives (discovered 3 exits: [*Fac] / *Hub x2) -6/Hub_04(d) (discovered 4 exits: [*Fac x3] / Gar) -6/Garrison (discovered 3 exits: [*Fac x3]) -5/Factory -5/Upper Caves -5/Upper Caves -5/Warlord -4/Proximity Caves -4/Factory -4/Garrison (discovered 3 exits: *Res x3) -3/Research (discovered 2 exits: Res / Gar) -3/Garrison (discovered 3 exits: *Res x3) -2/Research (discovered 2 exits: *Acc / Gar) -2/Garrison (discovered 3 exits: *Res x3) -2/Research -2/Garrison (discovered 3 exits: *Acc x3) -1/Access -1/Command History --------- Turn | Location | Event 9 | -11/Scrapyard | Discovered new exit (range 15) 71 | -11/Scrapyard | Entered Materials 186 | -10/Materials | Discovered new exit (range 16) 309 | -10/Materials | Build established: Mutant 368 | -10/Materials | Central database locked down 547 | -10/Materials | Discovered new exit (range 16) 636 | -10/Materials | Identified exit to Mines 1240 | -10/Materials | Entered Mines 1252 | -10/Mines | Learned 4 Materials zone layouts 1350 | -10/Mines | Discovered new exit (range 9) 1364 | -10/Mines | Received a Mining Laser from a helpful Derelict 1409 | -10/Mines | Learned location of Storage (-9) 1460 | -10/Mines | Core integrity fell below 50% 1498 | -10/Mines | Discovered new exit (range 8) 2074 | -10/Mines | Entered Materials 2074 | -9/Materials | Accompanied by 2 allies 2074 | -9/Materials | Evolved 2 slots: Propulsion x1, Utility x1 2075 | -9/Materials | Identified exit to Materials 2075 | -9/Materials | Identified exit to Storage 2079 | -9/Materials | Led the pair of lost Derelicts to an unsafe place 2735 | -9/Materials | Discovered exit to Materials (range 18) 2988 | -9/Materials | Discovered new exit (range 16) 3341 | -9/Materials | Central database locked down 3480 | -9/Materials | Learned location of 1 exit from Recycling 3530 | -9/Materials | Learned location of Zion (-6) 3635 | -9/Materials | Learned Storage trap positions 3683 | -9/Materials | Learned 2 Materials zone layouts 4071 | -9/Materials | Repaired Imp. Assault Rifle 4110 | -9/Materials | Repaired Reflective Plating 4144 | -9/Materials | Repaired Imp. Treads 4486 | -9/Materials | Identified exit to Mines 4608 | -9/Materials | Repaired Imp. Treads 4635 | -9/Materials | Entered Storage 4636 | -9/Storage | Identified exit to Recycling 4637 | -9/Storage | Loaded intel: 10 trap records 4875 | -9/Storage | Repaired Imp. Assault Rifle 4969 | -9/Storage | Repaired Reflective Plating 5284 | -9/Storage | Discovered exit to Materials (range 11) 5962 | -9/Storage | Learned location of Armory (-3) 6106 | -9/Storage | Met 01-MTF 6479 | -9/Storage | Entered Materials 6479 | -8/Materials | Accompanied by 1 ally (01-MTF) 6479 | -8/Materials | Evolved 2 slots: Utility x2 6482 | -8/Materials | 01-MTF left 6881 | -8/Materials | Discovered new exit (range 15) 6981 | -8/Materials | Found Powered Armor 6992 | -8/Materials | Found Powered Armor 7026 | -8/Materials | Found Powered Armor 7030 | -8/Materials | Found Powered Armor 8002 | -8/Materials | Discovered new exit (range 10) 8026 | -8/Materials | Central database locked down 8169 | -8/Materials | Learned location of Lower Caves (-6) 8232 | -8/Materials | Learned 2 Storage zone layouts 8328 | -8/Materials | Identified exit to Factory 8417 | -8/Materials | Learned Storage emergency access door positions 8515 | -8/Materials | Learned Storage security intel 10038 | -8/Materials | Identified exit to Garrison 10040 | -8/Materials | Entered Garrison 10040 | -8/Garrison | Accompanied by 1 ally 10129 | -8/Garrison | Rescued a captive Derelict 10139 | -8/Garrison | Rescued a captive Derelict 10197 | -8/Garrison | Garrison Relay disabled 10300 | -8/Garrison | P-60 Hacker assimilated allied 6R-X9D(g) 10304 | -8/Garrison | Triggered checkpoint 10351 | -8/Garrison | Destroyed 7 combat bots 10396 | -8/Garrison | Discovered new exit (range 10) 10448 | -8/Garrison | Triggered checkpoint 10556 | -8/Garrison | Learned Materials security intel 10617 | -8/Garrison | Garrison Relay disabled 11138 | -8/Garrison | Spotted B-75 Beast 11153 | -8/Garrison | Destroyed B-75 Beast 11454 | -8/Garrison | Build established: Scavenger-Mutant 11469 | -8/Garrison | Discovered new exit (range 13) 11559 | -8/Garrison | Triggered checkpoint 11559 | -8/Garrison | Garrison Relay disabled 11860 | -8/Garrison | Triggered checkpoint 11966 | -8/Garrison | Triggered checkpoint 11996 | -8/Garrison | Installed Relay Interface Framework 12250 | -8/Garrison | Discovered new exit (range 10) 12280 | -8/Garrison | Entered Materials 12285 | -8/Materials | Build established: Bothacker-Mutant 14502 | -8/Materials | Identified exit to Garrison 14602 | -8/Materials | Entered Garrison 14662 | -8/Garrison | Triggered checkpoint 14666 | -8/Garrison | Core integrity fell below 50% 14693 | -8/Garrison | Discovered new exit (range 6) 14834 | -8/Garrison | Triggered checkpoint 14855 | -8/Garrison | Garrison Relay disabled 15074 | -8/Garrison | Triggered checkpoint 15100 | -8/Garrison | Triggered checkpoint 15198 | -8/Garrison | Discovered exit to Factory (range 11) 15234 | -8/Garrison | Triggered checkpoint 15293 | -8/Garrison | Lost 3 allies 15417 | -8/Garrison | Expanded RIF knowledge: Patrol Navigation 15448 | -8/Garrison | Garrison Relay disabled 15666 | -8/Garrison | Triggered checkpoint 15764 | -8/Garrison | Triggered checkpoint 15845 | -8/Garrison | Garrison Relay disabled 15866 | -8/Garrison | Destroyed 8 combat bots 15896 | -8/Garrison | Expanded RIF knowledge: Coupler Efficiency 15968 | -8/Garrison | Garrison Relay disabled 16253 | -8/Garrison | Discovered exit to Factory (range 61) 16253 | -8/Garrison | Discovered exit to Factory (range 72) 16253 | -8/Garrison | Discovered exit to Factory (range 38) 16253 | -8/Garrison | Discovered new exit (range 34) 16499 | -8/Garrison | Entered Materials 16499 | -8/Materials | Accompanied by 4 allies 17008 | -8/Materials | Discovered exit to Factory (range 3) 18040 | -8/Materials | Repaired Arm. Medium Treads 18097 | -8/Materials | Repaired Arm. Medium Treads 18312 | -8/Materials | Identified exit to Garrison 18313 | -8/Materials | Entered Garrison 18313 | -8/Garrison | Accompanied by 1 ally 18403 | -8/Garrison | Triggered checkpoint 18417 | -8/Garrison | Garrison Relay disabled 18635 | -8/Garrison | Triggered checkpoint 18637 | -8/Garrison | Triggered checkpoint 18644 | -8/Garrison | Core integrity fell below 20% 18870 | -8/Garrison | Discovered exit to Factory (range 10) 19051 | -8/Garrison | Triggered checkpoint 19107 | -8/Garrison | Expanded RIF knowledge: Signal Jamming 19210 | -8/Garrison | Triggered checkpoint 19363 | -8/Garrison | Discovered exit to Factory (range 3) 19413 | -8/Garrison | Build established: Botlord-Mutant 19425 | -8/Garrison | Garrison Relay disabled 19461 | -8/Garrison | Triggered checkpoint 19776 | -8/Garrison | Discovered exit to Factory (range 12) 19797 | -8/Garrison | Rescued a captive Derelict 19841 | -8/Garrison | Triggered checkpoint 19877 | -8/Garrison | Garrison Relay disabled 20250 | -8/Garrison | Entered Factory 20250 | -7/Factory | Accompanied by 2 allies 20250 | -7/Factory | Evolved 2 slots: Propulsion x1, Utility x1 20663 | -7/Factory | Discovered new exit (range 6) 21286 | -7/Factory | Cargo convoy interrupted 21360 | -7/Factory | Destroyed 9 combat bots 21591 | -7/Factory | Identified exit to Garrison 21718 | -7/Factory | Entered Garrison 21718 | -7/Garrison | Accompanied by 2 allies 21761 | -7/Garrison | Expanded RIF knowledge: Program Shield 21831 | -7/Garrison | Discovered new exit (range 54) 21831 | -7/Garrison | Discovered new exit (range 75) 21831 | -7/Garrison | Discovered new exit (range 57) 21880 | -7/Garrison | Garrison Relay disabled 22111 | -7/Garrison | Learned Factory security intel 22146 | -7/Garrison | Triggered checkpoint 22148 | -7/Garrison | Triggered checkpoint 22151 | -7/Garrison | Triggered checkpoint 22184 | -7/Garrison | Triggered checkpoint 22252 | -7/Garrison | Garrison Relay disabled 22403 | -7/Garrison | Entered Factory 22403 | -7/Factory | Accompanied by 3 allies 22699 | -7/Factory | Lost 3 allies 23704 | -7/Factory | Fabricated P-60 Hacker (x2) 23749 | -7/Factory | Fabricated P-60 Hacker (x2) 23787 | -7/Factory | Fabricated M-28 Smith? 24914 | -7/Factory | Identified exit to Garrison 24929 | -7/Factory | Entered Garrison 24929 | -7/Garrison | Accompanied by 7 allies 25007 | -7/Garrison | Triggered checkpoint 25040 | -7/Garrison | Garrison Relay disabled 25119 | -7/Garrison | Triggered checkpoint 25122 | -7/Garrison | Hacker 4d assimilated hostile G-47 Trooper 25131 | -7/Garrison | Triggered checkpoint 25134 | -7/Garrison | Hacker 4d assimilated hostile G-47 Trooper 25156 | -7/Garrison | Triggered checkpoint 25166 | -7/Garrison | Triggered checkpoint 25250 | -7/Garrison | Lost 10 allies 25300 | -7/Garrison | Discovered new exit (range 10) 25469 | -7/Garrison | Triggered checkpoint 25504 | -7/Garrison | Garrison Relay disabled 25623 | -7/Garrison | Rescued a captive Derelict 25633 | -7/Garrison | Rescued a captive Derelict 25889 | -7/Garrison | Triggered checkpoint 25913 | -7/Garrison | Discovered new exit (range 26) 25913 | -7/Garrison | Discovered new exit (range 46) 25913 | -7/Garrison | Discovered new exit (range 51) 25933 | -7/Garrison | Garrison Relay disabled 26071 | -7/Garrison | Expanded RIF knowledge: Autoassimilate 26316 | -7/Garrison | Triggered checkpoint 26356 | -7/Garrison | Garrison Relay disabled 26420 | -7/Garrison | Garrison Relay disabled 26493 | -7/Garrison | Entered Factory 26493 | -6/Factory | Accompanied by 2 allies 26493 | -6/Factory | Evolved 2 slots: Utility x2 26494 | -6/Factory | Identified exit to Extension 26807 | -6/Factory | Sucked down chute 26807 | -6/Factory | Entered Waste 26822 | -6/Waste | EMP discharged 26860 | -6/Waste | Spotted C-40 Crusher 26862 | -6/Waste | 2 allies followed down the chute 26873 | -6/Waste | Spotted C-40 Crusher 26877 | -6/Waste | Spotted C-40 Crusher 26898 | -6/Waste | Spotted C-40 Crusher 26901 | -6/Waste | Spotted C-40 Crusher 26921 | -6/Waste | Allies destroyed C-40 Crusher 26922 | -6/Waste | EMP discharged 26922 | -6/Waste | System corruption reached 10% 26979 | -6/Waste | Destroyed C-40 Crusher 27018 | -6/Waste | Destroyed C-40 Crusher 27022 | -6/Waste | EMP discharged 27041 | -6/Waste | Destroyed C-40 Crusher 27052 | -6/Waste | Destroyed C-40 Crusher 27122 | -6/Waste | EMP discharged 27122 | -6/Waste | System corruption reached 30% 27123 | -6/Waste | Spotted C-40 Crusher 27142 | -6/Waste | Destroyed C-40 Crusher 27178 | -6/Waste | Found Unknown Protection 27178 | -6/Waste | Identified Damper Plating 27222 | -6/Waste | EMP discharged 27249 | -6/Waste | Discovered new exit (range 12) 27322 | -6/Waste | EMP discharged 27422 | -6/Waste | EMP discharged 27522 | -6/Waste | EMP discharged 27574 | -6/Waste | Met Warlord forces unprepared to attack 27622 | -6/Waste | EMP discharged 27697 | -6/Waste | Entered Factory 27697 | -6/Factory | Accompanied by 19 allies 27759 | -6/Factory | Discovered new exit (range 15) 27835 | -6/Factory | Lost 5 allies 28114 | -6/Factory | Lost 3 allies 28447 | -6/Factory | Identified exit to Garrison 28447 | -6/Factory | Entered Garrison 28447 | -6/Garrison | Accompanied by 7 allies 28538 | -6/Garrison | Garrison Relay disabled 28559 | -6/Garrison | Triggered checkpoint 28566 | -6/Garrison | Found embedded Infiltrators 28621 | -6/Garrison | Triggered checkpoint 28644 | -6/Garrison | Spotted B-90 Cyclops 28657 | -6/Garrison | Lost 3 allies 28679 | -6/Garrison | Allies destroyed B-90 Cyclops 28721 | -6/Garrison | Rewired B-75 Beast 28730 | -6/Garrison | Rewired B-75 Beast 28837 | -6/Garrison | Triggered checkpoint 28839 | -6/Garrison | Spotted B-75 Beast 28859 | -6/Garrison | Allies destroyed B-75 Beast 28871 | -6/Garrison | Triggered checkpoint 28883 | -6/Garrison | Lost 4 allies 28909 | -6/Garrison | Triggered checkpoint 28996 | -6/Garrison | Garrison Relay disabled 29029 | -6/Garrison | Triggered checkpoint 29069 | -6/Garrison | Garrison Relay disabled 29139 | -6/Garrison | Discovered exit to Extension (range 18) 29139 | -6/Garrison | Discovered exit to Extension (range 76) 29139 | -6/Garrison | Discovered exit to Extension (range 76) 29256 | -6/Garrison | Triggered checkpoint 29262 | -6/Garrison | Spotted B-75 Beast 29267 | -6/Garrison | Spotted B-75 Beast 29273 | -6/Garrison | Autoassimilated Beast 5c with RIF 29275 | -6/Garrison | Assimilated Beast 5d with formatsys_high 29324 | -6/Garrison | Found Quantum Capacitor 29328 | -6/Garrison | Found Quantum Capacitor 29515 | -6/Garrison | Triggered checkpoint 29551 | -6/Garrison | Expanded RIF knowledge: Code Merge 29758 | -6/Garrison | Entered Extension 29758 | -6/Extension | Accompanied by 8 allies 30108 | -6/Extension | First assault squad dispatched 30169 | -6/Extension | Rescued a captive Derelict 30179 | -6/Extension | Rescued a captive Derelict 30191 | -6/Extension | Rescued A7 30315 | -6/Extension | Lost 3 allies 30344 | -6/Extension | Rescued a captive Derelict 30347 | -6/Extension | Spotted B-75 Beast 30390 | -6/Extension | Lost 3 allies 30878 | -6/Extension | Spotted B-75 Beast 30882 | -6/Extension | Allies destroyed B-75 Beast 30896 | -6/Extension | Allies destroyed B-75 Beast 31118 | -6/Extension | Discovered new exit (range 16) 31123 | -6/Extension | Discovered new exit (range 14) 31159 | -6/Extension | Entered Cetus 31159 | -6/Cetus | Accompanied by 15 allies (A7) 31164 | -6/Cetus | Acquired a Cetus Manufacturing Module code from A7 31191 | -6/Cetus | Spotted Cetus Guard 31191 | -6/Cetus | Spotted Cetus Guard 31193 | -6/Cetus | Spotted Cetus Guard 31195 | -6/Cetus | Spotted Cetus Guard 31212 | -6/Cetus | Destroyed Cetus Guard 31222 | -6/Cetus | Allies destroyed Cetus Guard 31224 | -6/Cetus | Destroyed Cetus Guard 31247 | -6/Cetus | Lost 4 allies 31314 | -6/Cetus | Started Cetus Manufacturing Module 31333 | -6/Cetus | Discovered new exit (range 15) 31339 | -6/Cetus | Manufactured an Enhanced Grunt 31359 | -6/Cetus | Spotted Cetus Guard 31360 | -6/Cetus | Spotted Cetus Guard 31363 | -6/Cetus | Spotted Cetus Guard 31363 | -6/Cetus | Spotted Cetus Guard 31364 | -6/Cetus | Manufactured an Enhanced Grunt 31383 | -6/Cetus | Allies destroyed Cetus Guard 31389 | -6/Cetus | Manufactured an Enhanced Grunt 31389 | -6/Cetus | Allies destroyed Cetus Guard 31392 | -6/Cetus | Discovered new exit (range 15) 31393 | -6/Cetus | Destroyed Cetus Guard 31395 | -6/Cetus | Allies destroyed Cetus Guard 31401 | -6/Cetus | Met Revision 17 31414 | -6/Cetus | Manufactured an Enhanced Grunt 31439 | -6/Cetus | Manufactured an Enhanced Grunt 31560 | -6/Cetus | Entered Archives 31560 | -6/Archives | Accompanied by 14 allies (A7) 31599 | -6/Archives | Discovered new exit (range 15) 31658 | -6/Archives | Discovered new exit (range 15) 31990 | -6/Archives | Discovered new exit (range 16) 32285 | -6/Archives | Unable to access archive contents 32769 | -6/Archives | Entered Hub_04(d) 32769 | -6/Hub_04(d) | Accompanied by 16 allies 32881 | -6/Hub_04(d) | Discovered new exit (range 14) 33398 | -6/Hub_04(d) | Discovered new exit (range 16) 33597 | -6/Hub_04(d) | Spotted B-75 Beast 33606 | -6/Hub_04(d) | Allies destroyed B-75 Beast 33705 | -6/Hub_04(d) | Lost 10 allies 33749 | -6/Hub_04(d) | Discovered new exit (range 6) 33819 | -6/Hub_04(d) | First assault squad dispatched 33897 | -6/Hub_04(d) | Network Hub disabled 33932 | -6/Hub_04(d) | Lost 3 allies 33996 | -6/Hub_04(d) | Network Hub disabled 34144 | -6/Hub_04(d) | Identified exit to Garrison 34144 | -6/Hub_04(d) | Entered Garrison 34152 | -6/Garrison | Triggered checkpoint 34275 | -6/Garrison | Build established: Bothacker-Mutant 34286 | -6/Garrison | Triggered checkpoint 34300 | -6/Garrison | Garrison Relay disabled 34452 | -6/Garrison | Triggered checkpoint 34480 | -6/Garrison | Discovered new exit (range 9) 34500 | -6/Garrison | Triggered checkpoint 34540 | -6/Garrison | Triggered checkpoint 34596 | -6/Garrison | Build established: Botlord-Mutant 34748 | -6/Garrison | Triggered checkpoint 34768 | -6/Garrison | Triggered checkpoint 34839 | -6/Garrison | Discovered new exit (range 14) 34840 | -6/Garrison | Triggered checkpoint 34896 | -6/Garrison | Garrison Relay disabled 34994 | -6/Garrison | Triggered checkpoint 34995 | -6/Garrison | Expanded RIF knowledge: Structural Interface 35040 | -6/Garrison | Triggered checkpoint 35070 | -6/Garrison | Garrison Relay disabled 35091 | -6/Garrison | Lost 4 allies 35165 | -6/Garrison | Learned Factory security intel 35306 | -6/Garrison | Triggered checkpoint 35351 | -6/Garrison | Spotted B-75 Beast 35438 | -6/Garrison | Found Quantum Capacitor 35507 | -6/Garrison | Discovered new exit (range 11) 35589 | -6/Garrison | Lost 5 allies 35713 | -6/Garrison | Garrison Relay disabled 35908 | -6/Garrison | Found Unknown Hackware 35909 | -6/Garrison | Identified Relay Coupler [Proto] 35912 | -6/Garrison | Found Relay Coupler [Proto] 35918 | -6/Garrison | Found Relay Coupler [Proto] 35920 | -6/Garrison | Found Relay Coupler [Proto] 36084 | -6/Garrison | Garrison Relay disabled 36113 | -6/Garrison | Spotted Striker 36113 | -6/Garrison | Spotted Striker 36148 | -6/Garrison | Rewired Executioner 36160 | -6/Garrison | Rewired Executioner 36172 | -6/Garrison | Allies destroyed Striker 36180 | -6/Garrison | Allies destroyed Striker 36227 | -6/Garrison | Garrison Relay disabled 36306 | -6/Garrison | Entered Factory 36306 | -5/Factory | Accompanied by 14 allies 36306 | -5/Factory | Evolved 2 slots: Power x1, Utility x1 36540 | -5/Factory | Allies destroyed Executioner 36540 | -5/Factory | Allies destroyed Executioner 36548 | -5/Factory | Allied Derelicts emerged from ambush trap array 36550 | -5/Factory | High security lockdown imminent 36571 | -5/Factory | Lost 10 allies 36571 | -5/Factory | Found Prototype Device 36571 | -5/Factory | Identified Adv. Kinecellerator 36630 | -5/Factory | High security lockdown engaged 36651 | -5/Factory | Lost 3 allies 36667 | -5/Factory | Discovered new exit (range 11) 36714 | -5/Factory | Entered Upper Caves 36714 | -5/Upper Caves | Accompanied by 5 allies 36808 | -5/Upper Caves | Attracted the attention of an 0b10 checkpoint 36842 | -5/Upper Caves | Build established: Scavenger-Mutant 37212 | -5/Upper Caves | Learned 4 Factory zone layouts 37716 | -5/Upper Caves | Discovered new exit (range 14) 37880 | -5/Upper Caves | Encountered a Warlord checkpoint 37905 | -5/Upper Caves | Learned Factory trap positions 38011 | -5/Upper Caves | Entered another Upper Caves area 38244 | -5/Upper Caves | Identified exit to Warlord 38275 | -5/Upper Caves | Learned Factory terminal intel 38531 | -5/Upper Caves | Spotted B-75 Beast 38683 | -5/Upper Caves | Entered Warlord 38736 | -5/Warlord | System corruption cleaned by Quarantine Array 38742 | -5/Warlord | RIF detected upon attempting to enter Warlord's base 38742 | -5/Warlord | Attacked by Warlord forces 38791 | -5/Warlord | Discovered new exit (range 12) 38807 | -5/Warlord | Entered Proximity Caves 38990 | -4/Proximity Caves | Learned location of 1 exit from Research 39110 | -4/Proximity Caves | Discovered new exit (range 3) 39121 | -4/Proximity Caves | Entered Factory 39121 | -4/Factory | Evolved 2 slots: Utility x2 39123 | -4/Factory | Loaded intel: 122 trap records 39124 | -4/Factory | Loaded intel: 26 terminal locations 39518 | -4/Factory | Identified exit to Garrison 39773 | -4/Factory | Garrison activated, responded to threat 39938 | -4/Factory | Fabricated M-28 Smith? 39959 | -4/Factory | Build established: Botlord-Mutant 40054 | -4/Factory | Entered Garrison 40054 | -4/Garrison | Accompanied by 3 allies 40073 | -4/Garrison | Found embedded Infiltrators 40078 | -4/Garrison | Triggered checkpoint 40109 | -4/Garrison | Garrison Relay disabled 40177 | -4/Garrison | Found Quantum Capacitor 40188 | -4/Garrison | System corruption reached 10% 40282 | -4/Garrison | Spotted B-86 Titan 40285 | -4/Garrison | Assimilated Titan 7a with formatsys_high 40304 | -4/Garrison | Triggered checkpoint 40320 | -4/Garrison | Triggered checkpoint 40368 | -4/Garrison | Garrison Relay disabled 40382 | -4/Garrison | Triggered checkpoint 40429 | -4/Garrison | Expanded RIF knowledge: Hotswap 40467 | -4/Garrison | Discovered new exit (range 14) 40555 | -4/Garrison | Garrison Relay disabled 40595 | -4/Garrison | Discovered new exit (range 15) 40694 | -4/Garrison | Triggered checkpoint 40724 | -4/Garrison | Garrison Relay disabled 40763 | -4/Garrison | Discovered new exit (range 12) 40818 | -4/Garrison | Garrison Relay disabled 40983 | -4/Garrison | Found Relay Coupler [Proto] 40988 | -4/Garrison | Found Relay Coupler [Proto] 40991 | -4/Garrison | Found Relay Coupler [Proto] 41167 | -4/Garrison | Entered Research 41167 | -3/Research | Accompanied by 3 allies 41167 | -3/Research | Evolved 2 slots: Propulsion x2 41168 | -3/Research | Identified exit to Research 41367 | -3/Research | Revision forces began assault on 0b10 41487 | -3/Research | Met up with Revision 17++ 41501 | -3/Research | Found Gamma Bomb Array 41748 | -3/Research | Lost 3 allies 41791 | -3/Research | Spotted B-86 Titan 41815 | -3/Research | Allies destroyed B-86 Titan 41867 | -3/Research | Research terminal network offline 41869 | -3/Research | Identified exit to Garrison 41902 | -3/Research | Entered Garrison 41902 | -3/Garrison | Accompanied by 5 allies 41914 | -3/Garrison | Triggered checkpoint 41988 | -3/Garrison | Triggered checkpoint 41992 | -3/Garrison | Garrison Relay disabled 42018 | -3/Garrison | Heavy support dispatched to Research 42095 | -3/Garrison | Spotted B-86 Titan 42097 | -3/Garrison | Assimilated Titan 8a with formatsys_high 42099 | -3/Garrison | Triggered checkpoint 42116 | -3/Garrison | Triggered checkpoint 42162 | -3/Garrison | Lost 7 allies 42196 | -3/Garrison | Triggered checkpoint 42227 | -3/Garrison | Discovered exit to Research (range 53) 42227 | -3/Garrison | Discovered exit to Research (range 75) 42227 | -3/Garrison | Discovered exit to Research (range 21) 42238 | -3/Garrison | Garrison Relay disabled 42266 | -3/Garrison | Lost 6 allies 42429 | -3/Garrison | Garrison Relay disabled 42432 | -3/Garrison | Garrison Relay disabled 42477 | -3/Garrison | Lost 3 parts (3u) 42494 | -3/Garrison | Garrison Relay disabled 42517 | -3/Garrison | Garrison Relay disabled 42592 | -3/Garrison | Triggered checkpoint 42683 | -3/Garrison | Expanded RIF knowledge: Zone Cloak 42722 | -3/Garrison | H-XX Assembler disabled 42814 | -3/Garrison | Entered Research 42814 | -2/Research | Accompanied by 2 allies 42814 | -2/Research | Evolved 2 slots: Power x1, Utility x1 43022 | -2/Research | Discovered new exit (range 12) 43115 | -2/Research | Found Quantum Capacitor 43179 | -2/Research | Identified exit to Garrison 43185 | -2/Research | Entered Garrison 43185 | -2/Garrison | Accompanied by 6 allies 43213 | -2/Garrison | Triggered checkpoint 43225 | -2/Garrison | Triggered checkpoint 43287 | -2/Garrison | Garrison Relay disabled 43320 | -2/Garrison | Garrison Relay disabled 43431 | -2/Garrison | Spotted B-90 Cyclops 43431 | -2/Garrison | Spotted B-90 Cyclops 43459 | -2/Garrison | Triggered checkpoint 43464 | -2/Garrison | Triggered checkpoint 43481 | -2/Garrison | Triggered checkpoint 43507 | -2/Garrison | System corruption reached 10% 43526 | -2/Garrison | Lost 5 allies 43617 | -2/Garrison | Triggered checkpoint 43680 | -2/Garrison | Spotted Striker 43680 | -2/Garrison | Spotted Striker 43695 | -2/Garrison | Destroyed Striker 43704 | -2/Garrison | Destroyed Striker 43728 | -2/Garrison | Rewired Executioner 43761 | -2/Garrison | Garrison Relay disabled 43797 | -2/Garrison | Discovered new exit (range 8) 43817 | -2/Garrison | Spotted B-86 Titan 43820 | -2/Garrison | Spotted B-75 Beast 43823 | -2/Garrison | Rewired B-90 Cyclops 43824 | -2/Garrison | Rewired B-86 Titan 43827 | -2/Garrison | Allies destroyed B-75 Beast 43838 | -2/Garrison | Assimilated Titan 9b with formatsys_high 43987 | -2/Garrison | Triggered checkpoint 43989 | -2/Garrison | Triggered checkpoint 44122 | -2/Garrison | Discovered new exit (range 10) 44131 | -2/Garrison | Triggered checkpoint 44153 | -2/Garrison | Triggered checkpoint 44174 | -2/Garrison | Discovered new exit (range 46) 44174 | -2/Garrison | Discovered new exit (range 84) 44174 | -2/Garrison | Discovered new exit (range 12) 44193 | -2/Garrison | Found embedded Infiltrators 44216 | -2/Garrison | Garrison Relay disabled 44402 | -2/Garrison | Expanded RIF knowledge: Command Fork 44553 | -2/Garrison | Entered Research 44553 | -2/Research | Accompanied by 13 allies 44803 | -2/Research | First assault squad dispatched 44838 | -2/Research | Garrison activated, responded to threat 44877 | -2/Research | Garrison activated, responded to threat 44963 | -2/Research | Identified exit to Garrison 45048 | -2/Research | Entered Garrison 45048 | -2/Garrison | Accompanied by 6 allies 45088 | -2/Garrison | Garrison Relay disabled 45112 | -2/Garrison | Triggered checkpoint 45185 | -2/Garrison | Spotted B-90 Cyclops 45191 | -2/Garrison | Assimilated Cyclops 9b with formatsys_high 45198 | -2/Garrison | Triggered checkpoint 45202 | -2/Garrison | Lost 3 allies 45222 | -2/Garrison | Triggered checkpoint 45242 | -2/Garrison | Triggered checkpoint 45248 | -2/Garrison | Learned Access security intel 45287 | -2/Garrison | Discovered new exit (range 5) 45326 | -2/Garrison | Triggered checkpoint 45344 | -2/Garrison | Garrison Relay disabled 45400 | -2/Garrison | Triggered checkpoint 45441 | -2/Garrison | Lost 3 allies 45460 | -2/Garrison | Found embedded Infiltrators 45470 | -2/Garrison | Triggered checkpoint 45472 | -2/Garrison | Triggered checkpoint 45483 | -2/Garrison | Garrison Relay disabled 45517 | -2/Garrison | Spotted Executioner 45522 | -2/Garrison | Rewired Executioner 45527 | -2/Garrison | Rewired Executioner 45532 | -2/Garrison | Allies destroyed Executioner 45538 | -2/Garrison | Found Prototype Processor 45538 | -2/Garrison | Identified Exp. Core Analyzer 45543 | -2/Garrison | Found Prototype Processor 45543 | -2/Garrison | Identified Exp. Targeting Computer 45576 | -2/Garrison | Garrison Relay disabled 45597 | -2/Garrison | Discovered new exit (range 7) 45679 | -2/Garrison | Discovered new exit (range 10) 45718 | -2/Garrison | Triggered checkpoint 45724 | -2/Garrison | Expanded RIF knowledge: Crosswire 45762 | -2/Garrison | Garrison Relay disabled 45767 | -2/Garrison | Lost 3 allies 45856 | -2/Garrison | Garrison Relay disabled 45931 | -2/Garrison | Entered Access 45931 | -1/Access | Accompanied by 8 allies 45931 | -1/Access | Evolved 2 slots: Utility x2 45957 | -1/Access | Found Quantum Capacitor 46114 | -1/Access | Lost 5 allies 46181 | -1/Access | First assault squad dispatched 46218 | -1/Access | Assimilated ARC 10a with formatsys_deep 46219 | -1/Access | Spotted B-99 Colossus 46222 | -1/Access | Assimilated Colossus 10a with formatsys_high 46264 | -1/Access | Lost 11 allies 46268 | -1/Access | Spotted B-99 Colossus 46270 | -1/Access | Assimilated Colossus 10b with formatsys_high 46370 | -1/Access | Lost 3 allies 46888 | -1/Access | Assimilated ARC 10b with formatsys_deep 46951 | -1/Access | Lost 4 allies 47038 | -1/Access | Lost 6 allies 47178 | -1/Access | High security lockdown imminent 47258 | -1/Access | High security lockdown engaged 47345 | -1/Access | Spotted B-99 Colossus 47346 | -1/Access | Assimilated Colossus 10c with formatsys_high 47357 | -1/Access | Spotted B-99 Colossus 47371 | -1/Access | Discovered new exit (range 3) 47378 | -1/Access | Entered Command 47404 | -1/Command | Lost 6 allies 47607 | -1/Command | Spotted M Guard 47608 | -1/Command | Autoassimilated M Guard with RIF 47609 | -1/Command | Spotted M Guard 47609 | -1/Command | Spotted Combat Programmer 47609 | -1/Command | Spotted Combat Programmer 47610 | -1/Command | Autoassimilated Combat Programmer with RIF 47610 | -1/Command | Autoassimilated Combat Programmer with RIF 47610 | -1/Command | Autoassimilated M Guard with RIF 47628 | -1/Command | First assault squad dispatched 47918 | -1/Command | Phase Generator disabled 48256 | -1/Command | Combat Programmer assimilated hostile L-61 Swordsman 48264 | -1/Command | Combat Programmer assimilated hostile X-87 Electro 48312 | -1/Command | Lost 3 allies 48378 | -1/Command | High security lockdown imminent 48400 | -1/Command | All MAIN.C guards destroyed 48442 | -1/Command | System corruption reached 10% 48458 | -1/Command | High security lockdown engaged 48473 | -1/Command | Lost 6 allies 48604 | -1/Command | Spotted Striker 48753 | -1/Command | Spotted Executioner 48753 | -1/Command | Spotted Executioner 48754 | -1/Command | Autoassimilated Executioner with RIF 48754 | -1/Command | Autoassimilated Executioner with RIF 48754 | -1/Command | Spotted Executioner 48755 | -1/Command | Autoassimilated Executioner with RIF 48761 | -1/Command | Spotted Striker 48761 | -1/Command | Spotted Striker 48762 | -1/Command | Spotted Striker 48762 | -1/Command | Spotted Striker 48763 | -1/Command | System corruption reached 30% 48772 | -1/Command | Core integrity fell below 50% 48776 | -1/Command | Spotted Alpha 7 48776 | -1/Command | Spotted Alpha 7 48776 | -1/Command | Spotted Striker 48776 | -1/Command | Spotted Striker 48776 | -1/Command | Spotted Executioner 48776 | -1/Command | Spotted Executioner 48776 | -1/Command | Spotted Executioner 48776 | -1/Command | Spotted Executioner 48777 | -1/Command | Autoassimilated Executioner with RIF 48779 | -1/Command | Core integrity fell below 20% 48779 | -1/Command | Assimilated Alpha 7 with formatsys_high 48779 | -1/Command | Assimilated Striker with formatsys_high 48779 | -1/Command | Spotted B-99 Colossus 48785 | -1/Command | Spotted B-99 Colossus 48791 | -1/Command | Allies destroyed Striker 48794 | -1/Command | Destroyed by B-99 Colossus with Linear Accelerator Last Messages --------------- 48791_ Striker destroyed. 48791_ Slug penetrates P-80 Master. 48791_ Slug penetrates Wall. 48791_ Field strength at 19. 48791_ P-80 Master fails to hack Alpha 7. 48792_ Field strength at 13. 48792_ Slug penetrates Alpha 7. 48792_ Alpha 7 suffers critical hit (Destroy). 48792_ Slug penetrates Wall. 48792_ Slug penetrates Alpha 7. 48792_ Alpha 7 destroyed. 48793_ Penetrated by Slug. 48793_ Stasis field depleted. 48793_ Slug penetrates Wall. 48793_ Penetrated by Slug. 48793_ Slug penetrates Wall. 48793_ Penetrated by Slug. 48793_ Relay Coupler [Proto] destroyed. 48793_ Slammed into Executioner. 48793_ Destabilizing: System corrupted (+2). Map ----- +----------------------------------------------------+ | | | | | | | | | ?????????????????????????????????????????????????? | | ?????????????????????????????????????????????????? | | ?????????????????????????????????????????????????? | | ?????????????????????????????????????????????????? | | ?????????????????????????????????????????????????? | | ?????????????????????????????????????????????????? | | ?????????????????????????????????????????????????? | | ???########??????????????????????????????????????? | | ???# #??????????????????????????????????????? | | ???# #??????????????????????????????????????? | | ???# #??????????????????????????????????????? | | ???# #??????????????????????????????????????? | | ???# #??????????????????########????????????? | | ???# #?????????????????? ????????????? | | ???### !###?????????######### ??????????????? | | ?????#/%#?????????### # #%# ;BB ???????????????? | | ?????#% #???????### 7 *%=E BB "????????????????? | | ?????# #???????# /! ^^ !! "????????????????? | | ????## ##??????#=/=^ ^ "????????????????? | | ????#% ########l/m^ % ^ "????????????????? | | ????# %gggKKmp/^ =%] EBB "????????????????? | | ????# "T ##########p%^%^E@BB "??????????####### | | ????# #????????##;=#/# # # ???# | | ????## ##??????????#######???????? ??# | | ?????# #??????????????????????????????????# | | ????#% ###????????????????????????????????# | | ???# # #????????????????????????????????# | | # #### " #???????????????#############????# | | "%###########?????# #????# | | # #?????# #????# | | "" " # #?????# ###### | | "%%""%" #!% " ####### / + | | #"#### #"!""T"" / " # ### | | ???# %#%!!""" = ####### # #?# | | ????# /% #?????# # #?# """ | | ?????# # #?????#####+####### #?# """" | | ????## #############?????#### ###### #?# """" | | ????# #????????????????# #?# T"" | | ????#= #????????????????# ## ##### #?# | | ????# +???? ???????????#??#####???# #?####### | | ????# #??? "????????????????????# #???????? | | ????## ##??? ?"???????????????????# #???????? | | ?????# #??? ? ""??????????????????# #???????? | | ?????# #??? ?????????????????# ######### | | ?????# #?? ????????????????# | | ????## ##? ???????????????# ### | +----------------------------------------------------+ Best States ------------- Heat Dissipation 109 Coolant Potential 100 Energy Generation 65 Energy Capacity 825 Matter Stores 300 Matter Capacity 300 Sight Range 23 Terrain Scan Density 10 Jamming Range 14 Cloak Strength 3 Armor Coverage 1600 Resistance: KI 20 Resistance: TH 10 Resistance: EM 90 Weapon Cycling 15 Evasion (%) 50 Targeting Accuracy 12 Core Analysis 8 Recoil Reduction 6 Kinecelleration 50 Offensive Hacking 14 Defensive Hacking 12 Relay Coupler Types 10 Relay Coupler Value 372 Authchip Count 3 Item Schematics ----------------- Reactive Plating | -8/Materials | Scanalyzed Adv. Plasma Cannon | -8/Materials | Scanalyzed Powered Armor | -8/Materials | Scanalyzed Adv. Cooling System | -8/Materials | Scanalyzed Adv. Hacking Suite | -7/Factory | Scanalyzed Lrn. Tractor Beam | -7/Factory | Hacked Quantum Capacitor | -4/Factory | Hacked Robot Schematics ------------------ M-13 Machinist | -10/Materials | Hacked P-60 Hacker | -7/Factory | Hacked M-28 Smith | -7/Factory | Hacked Fabricated ------------ P-60 Hacker | x2 | -7/Factory | Authchip P-60 Hacker | x2 | -7/Factory | Authchip M-28 Smith | x1 | -7/Factory | Authchip M-28 Smith | x1 | -4/Factory Alien Tech Used ----------------- None Achievements -------------- None Challenges ------------ None Game ------ Seed IonicMissileBattery Manual? 0 Play Time 05:20:42 Cumulative 489.9 hours Start 2024.08.21 @ 11:27:35 End 2024.08.22 @ 09:45:09 Sessions 11 Manual Loads 0 Difficulty Rogue Special Mode None Game No. 289 Rogue 289 Adventurer 0 Explorer 0 Win Type - Total 35 Types 25/2/4/1/1/0/1/1/0 Lore% 80 Gallery% 85 Achievement% 85 Wizard Run 0 Options --------- Layout 0 ASCII 0 Keyboard 1 Movement Numpad Keybinds 0 Fullscreen 2 Font 18/SmallcapsGlow Map View 76x50 Zoom Use 0% Tactical HUD 1 Map Filters NONE Filters NONE Steam 1 RUN: 59595107-34cf-4c5d-b371-5e3d9a0e99c8